Workbook

Sheet Stavba
C2: Položkový rozpočet stavby | H2: Datum: | I2: =TODAY() -> 2023-05-22
C5: Stavba : | D5: 3357 | E5: Přípojky pro p.p.č. 1005/8 v k.ú. Turnov
C7: Objednatel : | D7: Město TURNOV | H7: IČO : | I7: 00276227
D8: Antonína Dvořáka 335 | H8: DIČ : | I8: CZ00276227
C9: 51122 | D9: Turnov
C11: Zhotovitel : | D11: . | H11: IČO :
H12: DIČ :
C14: Za zhotovitele : | H14: Za objednatele :
C16: _______________ | H16: _______________
J18: Rozpočtové náklady
B19: Základ pro DPH | D19: 15 | E19: % | I19: =ROUND(G32,0) -> 0
B20: DPH | D20: =SazbaDPH1 -> 15 | E20: % | I20: =ROUND(I19*D20/100,0) -> 0
B21: Základ pro DPH | D21: 21 | E21: % | I21: =ROUND(H32,0) -> 0
B22: DPH | D22: =SazbaDPH2 -> 21 | E22: % | I22: =ROUND(I21*D21/100,0) -> 0
B23: Cena celkem za stavbu | I23: =SUM(I19:I22) -> 0
B26: Rekapitulace stavebních objektů a provozních souborů
B28: Číslo a název objektu / provozního souboru | F28: Cena celkem | G28: =CONCATENATE("Základ DPH ",SazbaDPH1," %") -> Základ DPH 15 % | H28: =CONCATENATE("Základ DPH ",SazbaDPH2," %") -> Základ DPH 21 % | I28: DPH celkem | J28: %
B29: 310 | C29: Vodovodní přípojka | F29: =G29+H29+I29 -> 0 | G29: 0 | H29: =SUM(H37) -> 0 | I29: =(G29*SazbaDPH1)/100+(H29*SazbaDPH2)/100 -> 0 | J29: =IF(CelkemObjekty=0,"",F29/CelkemObjekty*100) -> 
B30: 320 | C30: Kanalizační přípojka | F30: =G30+H30+I30 -> 0 | G30: 0 | H30: =SUM(H38) -> 0 | I30: 0
B31: 330 | C31: STL plynová přípojka | F31: 0 | G31: 0 | H31: =SUM(H39) -> 0 | I31: 0
B32: Celkem za stavbu | F32: =SUM(F29:F31) -> 0 | G32: =SUM(G29:G31) -> 0 | H32: =SUM(H29:H31) -> 0 | I32: =SUM(I29:I31) -> 0 | J32: =IF(CelkemObjekty=0,"",F32/CelkemObjekty*100) -> 
B34: Rekapitulace stavebních rozpočtů
B36: Číslo objektu | C36: Číslo a název rozpočtu | F36: Cena celkem | G36: =CONCATENATE("Základ DPH ",SazbaDPH1," %") -> Základ DPH 15 % | H36: =CONCATENATE("Základ DPH ",SazbaDPH2," %") -> Základ DPH 21 % | I36: DPH celkem | J36: %
B37: 310 | C37: 3357/310 Vodovodní přípojka | F37: =G37+H37+I37 -> 0 | G37: 0 | H37: =SUM('310 3357310 KL'!C23) -> 0 | I37: =(G37*SazbaDPH1)/100+(H37*SazbaDPH2)/100 -> 0 | J37: =IF(CelkemObjekty=0,"",F37/CelkemObjekty*100) -> 
B38: 320 | C38: 3357/320 Kanalizační přípojka | F38: =G38+H38+I38 -> 0 | G38: 0 | H38: =SUM('320 3357320 KL'!C23) -> 0 | I38: 0
B39: 330 | C39: 3357/330 STL plynová přípojka | F39: 0 | G39: 0 | H39: =SUM('330 3357330 KL'!C23) -> 0 | I39: 0
B40: Celkem za stavbu | F40: =SUM(F37:F39) -> 0 | G40: =SUM(G37:G39) -> 0 | H40: =SUM(H37:H39) -> 0 | I40: =SUM(I37:I39) -> 0 | J40: =IF(CelkemObjekty=0,"",F40/CelkemObjekty*100) -> 

Sheet 310 3357310 KL
A1: POLOŽKOVÝ ROZPOČET
A2: Rozpočet | C2: 3357/310 | D2: Vodovodní přípojka | F2: JKSO | G2: 827.19.A1
A4: Objekt | F4: SKP
A5: 310 | C5: Vodovodní přípojka | F5: Měrná jednotka | G5: m
A6: Stavba | F6: Počet jednotek | G6: 5
A7: 3357 | C7: Přípojky pro p.p.č. 1005/8 v k.ú. Turnov | F7: Náklady na m.j. | G7: =IF(G6=0,,ROUND((F30+F32)/G6,1)) -> 0
A8: Projektant | C8: JENA-CZ s.r.o. | F8: Typ rozpočtu
A9: Zpracovatel projektu
A10: Objednatel | C10: Město TURNOV
A11: Dodavatel | C11: . | F11: Zakázkové číslo
A12: Rozpočtoval | F12: Počet listů
A13: ROZPOČTOVÉ NÁKLADY
A14: Základní rozpočtové náklady | D14: Ostatní rozpočtové náklady
B15: HSV celkem | C15: ='310 3357310 Rek'!E12 -> 0 | D15: ='310 3357310 Rek'!A17 -> Zařízení staveniště | G15: ='310 3357310 Rek'!I17 -> 0
A16: Z | B16: PSV celkem | C16: ='310 3357310 Rek'!F12 -> 0 | D16: ='310 3357310 Rek'!A18 -> Kompletační činnost (IČD) | G16: ='310 3357310 Rek'!I18 -> 0
A17: R | B17: M práce celkem | C17: ='310 3357310 Rek'!H12 -> 0 | D17: ='310 3357310 Rek'!A19 -> Vytýčení stavby a podz. inženýrských sítí | G17: ='310 3357310 Rek'!I19 -> 0
A18: N | B18: M dodávky celkem | C18: ='310 3357310 Rek'!G12 -> 0 | D18: ='310 3357310 Rek'!A20 -> Dokumentace skutečného provedení | G18: ='310 3357310 Rek'!I20 -> 0
A19: ZRN celkem | C19: =SUM(C15:C18) -> 0 | D19: ='310 3357310 Rek'!A21 -> Geodetické zaměření stavby | G19: ='310 3357310 Rek'!I21 -> 0
D20: ='310 3357310 Rek'!A22 -> DIO | G20: ='310 3357310 Rek'!I22 -> 0
A21: HZS | C21: ='310 3357310 Rek'!I12 -> 0
A22: ZRN+HZS | C22: =C19+C21 -> 0
A23: ZRN+ost.náklady+HZS | C23: =C22+G23 -> 0 | D23: Ostatní náklady celkem | G23: ='310 3357310 Rek'!H23 -> 0
A24: Vypracoval | D24: Za zhotovitele | F24: Za objednatele
A25: Jméno : | D25: Jméno : | F25: Jméno :
A26: Datum : | D26: Datum : | F26: Datum :
A28: Podpis : | D28: Podpis: | F28: Podpis:
A30: Základ pro DPH | C30: 21 | D30: % | F30: =C23-F32 -> 0
A31: DPH | C31: =C30 -> 21 | D31: % | F31: =ROUND(PRODUCT(F30,C31/100),0) -> 0
A32: Základ pro DPH | C32: 0 | D32: % | F32: 0
A33: DPH | C33: =C32 -> 0 | D33: % | F33: =ROUND(PRODUCT(F32,C33/100),0) -> 0
A34: CENA ZA OBJEKT CELKEM | F34: =ROUND(SUM(F30:F33),0) -> 0
A36: Poznámka :

Sheet 310 3357310 Rek
A1: Stavba : | C1: 3357 Přípojky pro p.p.č. 1005/8 v k.ú. Turnov | G1: Rozpočet : | H1: 3357/310
A2: Objekt : | C2: 310 Vodovodní přípojka | G2: Vodovodní přípojka
A4: REKAPITULACE STAVEBNÍCH DÍLŮ
B6: Stavební díl | E6: HSV | F6: PSV | G6: Dodávka | H6: Montáž | I6: HZS
A7: ='310 3357310 Pol'!B7 -> 1 | B7: ='310 3357310 Pol'!C7 -> Zemní práce | E7: ='310 3357310 Pol'!BA93 -> 0 | F7: ='310 3357310 Pol'!BB93 -> 0 | G7: ='310 3357310 Pol'!BC93 -> 0 | H7: ='310 3357310 Pol'!BD93 -> 0 | I7: ='310 3357310 Pol'!BE93 -> 0
A8: ='310 3357310 Pol'!B94 -> 45 | B8: ='310 3357310 Pol'!C94 -> Podkladní a vedlejší konstrukce | E8: ='310 3357310 Pol'!BA97 -> 0 | F8: ='310 3357310 Pol'!BB97 -> 0 | G8: ='310 3357310 Pol'!BC97 -> 0 | H8: ='310 3357310 Pol'!BD97 -> 0 | I8: ='310 3357310 Pol'!BE97 -> 0
A9: ='310 3357310 Pol'!B98 -> 5 | B9: ='310 3357310 Pol'!C98 -> Komunikace | E9: ='310 3357310 Pol'!BA107 -> 0 | F9: ='310 3357310 Pol'!BB107 -> 0 | G9: ='310 3357310 Pol'!BC107 -> 0 | H9: ='310 3357310 Pol'!BD107 -> 0 | I9: ='310 3357310 Pol'!BE107 -> 0
A10: ='310 3357310 Pol'!B108 -> 8 | B10: ='310 3357310 Pol'!C108 -> Trubní vedení | E10: ='310 3357310 Pol'!BA158 -> 0 | F10: ='310 3357310 Pol'!BB158 -> 0 | G10: ='310 3357310 Pol'!BC158 -> 0 | H10: ='310 3357310 Pol'!BD158 -> 0 | I10: ='310 3357310 Pol'!BE158 -> 0
A11: ='310 3357310 Pol'!B159 -> 99 | B11: ='310 3357310 Pol'!C159 -> Staveništní přesun hmot | E11: ='310 3357310 Pol'!BA161 -> 0 | F11: ='310 3357310 Pol'!BB161 -> 0 | G11: ='310 3357310 Pol'!BC161 -> 0 | H11: ='310 3357310 Pol'!BD161 -> 0 | I11: ='310 3357310 Pol'!BE161 -> 0
B12: CELKEM OBJEKT | E12: =SUM(E7:E11) -> 0 | F12: =SUM(F7:F11) -> 0 | G12: =SUM(G7:G11) -> 0 | H12: =SUM(H7:H11) -> 0 | I12: =SUM(I7:I11) -> 0
A14: VEDLEJŠÍ ROZPOČTOVÉ NÁKLADY
A16: Název VRN | E16: Kč | I16: Kč
A17: Zařízení staveniště | E17: 0 | I17: =E17+F17*G17/100 -> 0 | BA17: 2
A18: Kompletační činnost (IČD) | E18: 0 | I18: 0 | BA18: 2
A19: Vytýčení stavby a podz. inženýrských sítí | E19: 0 | I19: 0 | BA19: 0
A20: Dokumentace skutečného provedení | E20: 0 | I20: 0 | BA20: 0
A21: Geodetické zaměření stavby | E21: 0 | I21: 0 | BA21: 0
A22: DIO | E22: 0 | I22: 0 | BA22: 0
B23: CELKEM VRN | H23: =SUM(I17:I22) -> 0

Sheet 310 3357310 Pol
A1: Položkový rozpočet
A3: Stavba : | C3: 3357 Přípojky pro p.p.č. 1005/8 v k.ú. Turnov | E3: Rozpočet: | F3: ='310 3357310 Rek'!H1 -> 3357/310
A4: Objekt : | C4: 310 Vodovodní přípojka | E4: ='310 3357310 Rek'!G2 -> Vodovodní přípojka
A6: P.č. | B6: Číslo položky | C6: Název položky | D6: MJ | E6: množství | F6: cena / MJ | G6: celkem (Kč) | H6: Jednotková hmotnost | I6: Celková hmotnost | J6: Jednotková dem.hmot. | K6: Celková dem.hmot.
A7: Díl: | B7: 1 | C7: Zemní práce | O7: 1
A8: 1 | B8: 113107520R00 | C8: Odstranění podkladu pl. 50 m2,kam.drcené tl.20 cm | D8: m2 | E8: 2.8 | G8: =E8*F8 -> 0 | H8: 0 | I8: =E8*H8 -> 0 | J8: -0.44 | K8: =E8*J8 -> -1.232 | O8: 2 | AA8: 1 | AB8: 1 | AC8: 1 | AZ8: 1 | BA8: =IF(AZ8=1,G8,0) -> 0 | BB8: =IF(AZ8=2,G8,0) -> 0 | BC8: =IF(AZ8=3,G8,0) -> 0 | BD8: =IF(AZ8=4,G8,0) -> 0 | BE8: =IF(AZ8=5,G8,0) -> 0 | CA8: 1 | CB8: 1
C9: Vodovodní přípojka PE D 32x3,0 mm:3,50*0,80 | E9: 2.8 | M9: Vodovodní přípojka PE D 32x3,0 mm:3,50*0,80
A10: 2 | B10: 113108310R00 | C10: Odstranění asfaltové vrstvy pl. do 50 m2, tl.10 cm | D10: m2 | E10: 2.8 | G10: =E10*F10 -> 0 | H10: 0 | I10: =E10*H10 -> 0 | J10: -0.22 | K10: =E10*J10 -> -0.616 | O10: 2 | AA10: 1 | AB10: 1 | AC10: 1 | AZ10: 1 | BA10: =IF(AZ10=1,G10,0) -> 0 | BB10: =IF(AZ10=2,G10,0) -> 0 | BC10: =IF(AZ10=3,G10,0) -> 0 | BD10: =IF(AZ10=4,G10,0) -> 0 | BE10: =IF(AZ10=5,G10,0) -> 0 | CA10: 1 | CB10: 1
C11: Vodovodní přípojka PE D 32x3,0 mm:3,50*0,80 | E11: 2.8 | M11: Vodovodní přípojka PE D 32x3,0 mm:3,50*0,80
A12: 3 | B12: 113109315R00 | C12: Odstranění podkladu pl.50 m2, bet.prostý tl.15 cm | D12: m2 | E12: 2.8 | G12: =E12*F12 -> 0 | H12: 0 | I12: =E12*H12 -> 0 | J12: -0.36 | K12: =E12*J12 -> -1.008 | O12: 2 | AA12: 1 | AB12: 1 | AC12: 1 | AZ12: 1 | BA12: =IF(AZ12=1,G12,0) -> 0 | BB12: =IF(AZ12=2,G12,0) -> 0 | BC12: =IF(AZ12=3,G12,0) -> 0 | BD12: =IF(AZ12=4,G12,0) -> 0 | BE12: =IF(AZ12=5,G12,0) -> 0 | CA12: 1 | CB12: 1
C13: Vodovodní přípojka PE D 32x3,0 mm:3,50*0,80 | E13: 2.8 | M13: Vodovodní přípojka PE D 32x3,0 mm:3,50*0,80
A14: 4 | B14: 119001401R00 | C14: Dočasné zajištění ocelového potrubí do DN 200 mm | D14: m | E14: 2.4 | G14: =E14*F14 -> 0 | H14: 0.00869 | I14: =E14*H14 -> 0.020856 | J14: 0 | K14: =E14*J14 -> 0 | O14: 2 | AA14: 1 | AB14: 1 | AC14: 1 | AZ14: 1 | BA14: =IF(AZ14=1,G14,0) -> 0 | BB14: =IF(AZ14=2,G14,0) -> 0 | BC14: =IF(AZ14=3,G14,0) -> 0 | BD14: =IF(AZ14=4,G14,0) -> 0 | BE14: =IF(AZ14=5,G14,0) -> 0 | CA14: 1 | CB14: 1
C15: Vodovodní přípojka PE D 32x3,0 mm: | E15: 0 | M15: Vodovodní přípojka PE D 32x3,0 mm:
C16: Vodovod :0,80*2 | E16: 1.6 | M16: Vodovod :0,80*2
C17: STL plyn:0,80*1 | E17: 0.8 | M17: STL plyn:0,80*1
A18: 5 | B18: 119001421R00 | C18: Dočasné zajištění kabelů - do počtu 3 kabelů | D18: m | E18: 1.6 | G18: =E18*F18 -> 0 | H18: 0.02478 | I18: =E18*H18 -> 0.039648 | J18: 0 | K18: =E18*J18 -> 0 | O18: 2 | AA18: 1 | AB18: 1 | AC18: 1 | AZ18: 1 | BA18: =IF(AZ18=1,G18,0) -> 0 | BB18: =IF(AZ18=2,G18,0) -> 0 | BC18: =IF(AZ18=3,G18,0) -> 0 | BD18: =IF(AZ18=4,G18,0) -> 0 | BE18: =IF(AZ18=5,G18,0) -> 0 | CA18: 1 | CB18: 1
C19: Vodovodní přípojka PE D 32x3,0 mm: | E19: 0 | M19: Vodovodní přípojka PE D 32x3,0 mm:
C20: Vedení NN:0,80*1 | E20: 0.8 | M20: Vedení NN:0,80*1
C21: Vedení VO:0,80*1 | E21: 0.8 | M21: Vedení VO:0,80*1
A22: 6 | B22: 121100002RAA | C22: Sejmutí ornice a uložení na deponii zpětný přesun, rozprostření v tl. 20 cm | D22: m3 | E22: 1.05 | G22: =E22*F22 -> 0 | H22: 0 | I22: =E22*H22 -> 0 | J22: 0 | K22: =E22*J22 -> 0 | O22: 2 | AA22: 1 | AB22: 1 | AC22: 1 | AZ22: 1 | BA22: =IF(AZ22=1,G22,0) -> 0 | BB22: =IF(AZ22=2,G22,0) -> 0 | BC22: =IF(AZ22=3,G22,0) -> 0 | BD22: =IF(AZ22=4,G22,0) -> 0 | BE22: =IF(AZ22=5,G22,0) -> 0 | CA22: 1 | CB22: 1
C23: Vodovodní přípojka PE D 32x3,0 mm:3,50*1,50*0,20 | E23: 1.05 | M23: Vodovodní přípojka PE D 32x3,0 mm:3,50*1,50*0,20
A24: 7 | B24: 130001101RRX | C24: Příplatek za ztížené hloubení v blízkosti vedení | D24: m3 | E24: 4.845 | G24: =E24*F24 -> 0 | H24: 0 | I24: =E24*H24 -> 0 | J24: 0 | K24: =E24*J24 -> 0 | O24: 2 | AA24: 1 | AB24: 0 | AC24: 0 | AZ24: 1 | BA24: =IF(AZ24=1,G24,0) -> 0 | BB24: =IF(AZ24=2,G24,0) -> 0 | BC24: =IF(AZ24=3,G24,0) -> 0 | BD24: =IF(AZ24=4,G24,0) -> 0 | BE24: =IF(AZ24=5,G24,0) -> 0 | CA24: 1 | CB24: 0
C25: Včetně případných nutných dokopávek a ručního výkopu podél sousedících inženýrských sítí a provedení sond před samotnou realizací výkopů. | L25: Včetně případných nutných dokopávek a ručního výkopu podél sousedících inženýrských sítí a provedení sond před samotnou realizací výkopů. | O25: 3
C26: Začátek provozního součtu | E26: 0 | M26: Začátek provozního součtu
C27: Vodovodní přípojka PE D 32x3,0 mm:3,50*0,80*((1,75+1,35)/2-0,45) | E27: 3.08 | M27: Vodovodní přípojka PE D 32x3,0 mm:3,50*0,80*((1,75+1,35)/2-0,45)
C28: 1,50*0,80*((1,75+1,35)/2-0,20) | E28: 1.62 | M28: 1,50*0,80*((1,75+1,35)/2-0,20)
C29: 1,50*1,50*(1,70-0,20) | E29: 3.375 | M29: 1,50*1,50*(1,70-0,20)
C30: Konec provozního součtu | E30: 8.075 | M30: Konec provozního součtu
C31: Příplatek z 60%:8,0750*0,6 | E31: 4.845 | M31: Příplatek z 60%:8,0750*0,6
A32: 8 | B32: 132201210R00 | C32: Hloubení rýh š.do 200 cm hor.3 do 50 m3,STROJNĚ | D32: m3 | E32: 8.075 | G32: =E32*F32 -> 0 | H32: 0 | I32: =E32*H32 -> 0 | J32: 0 | K32: =E32*J32 -> 0 | O32: 2 | AA32: 1 | AB32: 1 | AC32: 1 | AZ32: 1 | BA32: =IF(AZ32=1,G32,0) -> 0 | BB32: =IF(AZ32=2,G32,0) -> 0 | BC32: =IF(AZ32=3,G32,0) -> 0 | BD32: =IF(AZ32=4,G32,0) -> 0 | BE32: =IF(AZ32=5,G32,0) -> 0 | CA32: 1 | CB32: 1
C33: Položka obsahuje hloubení rýh traktorbagrem, naložení výkopku na dopravní prostředek pro svislé, nebo vodorovné přemístění, popř. přemístění výkopku do 3 m (po povrchu území), případné zajištění rypadel polštáři, udržování pracoviště a ochranu výkopiště proti stékání srážkové vody z okolního terénu i s jejím odvodněním, nebo odvedením, přesekání a odstranění kořenů ve výkopišti, odstranění napadávek, urovnání dna výkopu. | L33: Položka obsahuje hloubení rýh traktorbagrem, naložení výkopku na dopravní prostředek pro svislé, nebo vodorovné přemístění, popř. přemístění výkopku do 3 m (po povrchu území), případné zajištění rypadel polštáři, udržování pracoviště a ochranu výkopiště proti stékání srážkové vody z okolního terénu i s jejím odvodněním, nebo odvedením, přesekání a odstranění kořenů ve výkopišti, odstranění napadávek, urovnání dna výkopu. | O33: 3
C34: Vodovodní přípojka PE D 32x3,0 mm:3,50*0,80*((1,75+1,35)/2-0,45) | E34: 3.08 | M34: Vodovodní přípojka PE D 32x3,0 mm:3,50*0,80*((1,75+1,35)/2-0,45)
C35: 1,50*0,80*((1,75+1,35)/2-0,20) | E35: 1.62 | M35: 1,50*0,80*((1,75+1,35)/2-0,20)
C36: 1,50*1,50*(1,70-0,20) | E36: 3.375 | M36: 1,50*1,50*(1,70-0,20)
A37: 9 | B37: 132201219R00 | C37: Přípl.za lepivost,hloubení rýh 200cm,hor.3,STROJNĚ | D37: m3 | E37: 8.075 | G37: =E37*F37 -> 0 | H37: 0 | I37: =E37*H37 -> 0 | J37: 0 | K37: =E37*J37 -> 0 | O37: 2 | AA37: 1 | AB37: 1 | AC37: 1 | AZ37: 1 | BA37: =IF(AZ37=1,G37,0) -> 0 | BB37: =IF(AZ37=2,G37,0) -> 0 | BC37: =IF(AZ37=3,G37,0) -> 0 | BD37: =IF(AZ37=4,G37,0) -> 0 | BE37: =IF(AZ37=5,G37,0) -> 0 | CA37: 1 | CB37: 1
C38: Vodovodní přípojka PE D 32x3,0 mm:3,50*0,80*((1,75+1,35)/2-0,45) | E38: 3.08 | M38: Vodovodní přípojka PE D 32x3,0 mm:3,50*0,80*((1,75+1,35)/2-0,45)
C39: 1,50*0,80*((1,75+1,35)/2-0,20) | E39: 1.62 | M39: 1,50*0,80*((1,75+1,35)/2-0,20)
C40: 1,50*1,50*(1,70-0,20) | E40: 3.375 | M40: 1,50*1,50*(1,70-0,20)
A41: 10 | B41: 151101101R00 | C41: Pažení a rozepření stěn rýh - příložné - hl.do 2 m | D41: m2 | E41: 20.6 | G41: =E41*F41 -> 0 | H41: 0.00099 | I41: =E41*H41 -> 0.020394 | J41: 0 | K41: =E41*J41 -> 0 | O41: 2 | AA41: 1 | AB41: 1 | AC41: 1 | AZ41: 1 | BA41: =IF(AZ41=1,G41,0) -> 0 | BB41: =IF(AZ41=2,G41,0) -> 0 | BC41: =IF(AZ41=3,G41,0) -> 0 | BD41: =IF(AZ41=4,G41,0) -> 0 | BE41: =IF(AZ41=5,G41,0) -> 0 | CA41: 1 | CB41: 1
C42: Vodovodní přípojka PE D 32x3,0 mm:5,00*(1,75+1,35)/2*2 | E42: 15.5 | M42: Vodovodní přípojka PE D 32x3,0 mm:5,00*(1,75+1,35)/2*2
C43: 1,50*1,70*2 | E43: 5.1 | M43: 1,50*1,70*2
A44: 11 | B44: 151101111R00 | C44: Odstranění pažení stěn rýh - příložné - hl. do 2 m | D44: m2 | E44: 20.6 | G44: =E44*F44 -> 0 | H44: 0 | I44: =E44*H44 -> 0 | J44: 0 | K44: =E44*J44 -> 0 | O44: 2 | AA44: 1 | AB44: 1 | AC44: 1 | AZ44: 1 | BA44: =IF(AZ44=1,G44,0) -> 0 | BB44: =IF(AZ44=2,G44,0) -> 0 | BC44: =IF(AZ44=3,G44,0) -> 0 | BD44: =IF(AZ44=4,G44,0) -> 0 | BE44: =IF(AZ44=5,G44,0) -> 0 | CA44: 1 | CB44: 1
C45: Vodovodní přípojka PE D 32x3,0 mm:5,00*(1,75+1,35)/2*2 | E45: 15.5 | M45: Vodovodní přípojka PE D 32x3,0 mm:5,00*(1,75+1,35)/2*2
C46: 1,50*1,70*2 | E46: 5.1 | M46: 1,50*1,70*2
A47: 12 | B47: 162701105RSZ | C47: Vodorovné přemístění výkopku z hor.1-7 na skládku zhotovitele | D47: m3 | E47: 5.3549 | G47: =E47*F47 -> 0 | H47: 0 | I47: =E47*H47 -> 0 | J47: 0 | K47: =E47*J47 -> 0 | O47: 2 | AA47: 1 | AB47: 1 | AC47: 1 | AZ47: 1 | BA47: =IF(AZ47=1,G47,0) -> 0 | BB47: =IF(AZ47=2,G47,0) -> 0 | BC47: =IF(AZ47=3,G47,0) -> 0 | BD47: =IF(AZ47=4,G47,0) -> 0 | BE47: =IF(AZ47=5,G47,0) -> 0 | CA47: 1 | CB47: 1
C48: Výkopy: | E48: 0 | M48: Výkopy:
C49: Vodovodní přípojka PE D 32x3,0 mm:3,50*0,80*((1,75+1,35)/2-0,45) | E49: 3.08 | M49: Vodovodní přípojka PE D 32x3,0 mm:3,50*0,80*((1,75+1,35)/2-0,45)
C50: 1,50*0,80*((1,75+1,35)/2-0,20) | E50: 1.62 | M50: 1,50*0,80*((1,75+1,35)/2-0,20)
C51: 1,50*1,50*(1,70-0,20) | E51: 3.375 | M51: 1,50*1,50*(1,70-0,20)
C52: Odpočet zásypů zeminou:-2,7201 | E52: -2.7201 | M52: Odpočet zásypů zeminou:-2,7201
A53: 13 | B53: 174101101R00 | C53: Zásyp jam, rýh, šachet se zhutněním | D53: m3 | E53: 4.4505 | G53: =E53*F53 -> 0 | H53: 0 | I53: =E53*H53 -> 0 | J53: 0 | K53: =E53*J53 -> 0 | O53: 2 | AA53: 1 | AB53: 1 | AC53: 1 | AZ53: 1 | BA53: =IF(AZ53=1,G53,0) -> 0 | BB53: =IF(AZ53=2,G53,0) -> 0 | BC53: =IF(AZ53=3,G53,0) -> 0 | BD53: =IF(AZ53=4,G53,0) -> 0 | BE53: =IF(AZ53=5,G53,0) -> 0 | CA53: 1 | CB53: 1
C54: Položka obsahuje strojní přemístění materiálu pro zásyp ze vzdálenosti do 10 m od okraje zásypu. | L54: Položka obsahuje strojní přemístění materiálu pro zásyp ze vzdálenosti do 10 m od okraje zásypu. | O54: 3
O55: 3
C56: Zásyp zeminou:2,7201 | E56: 2.7201 | M56: Zásyp zeminou:2,7201
C57: Začátek provozního součtu | E57: 0 | M57: Začátek provozního součtu
C58: Vodovodní přípojka PE D 32x3,0 mm:1,50*0,80*((1,75+1,35)/2-0,20) | E58: 1.62 | M58: Vodovodní přípojka PE D 32x3,0 mm:1,50*0,80*((1,75+1,35)/2-0,20)
C59: 1,50*1,50*(1,70-0,20) | E59: 3.375 | M59: 1,50*1,50*(1,70-0,20)
C60: Odpočet lože, potrubí a obsypů:-1,50*0,80*(0,15+0,032+0,30) | E60: -0.5784 | M60: Odpočet lože, potrubí a obsypů:-1,50*0,80*(0,15+0,032+0,30)
C61: Odpočet objemu VŠ:-0,60^2*Pi*(1,70-0,20) | E61: -1.6965 | M61: Odpočet objemu VŠ:-0,60^2*Pi*(1,70-0,20)
C62: Konec provozního součtu | E62: 2.7201 | M62: Konec provozního součtu
C63: Zásyp ŠD fr. 0-63 mm v komunikaci:1,7304 | E63: 1.7304 | M63: Zásyp ŠD fr. 0-63 mm v komunikaci:1,7304
C64: Začátek provozního součtu | E64: 0 | M64: Začátek provozního součtu
C65: Vodovodní přípojka PE D 32x3,0 mm:3,50*0,80*((1,75+1,35)/2-0,45) | E65: 3.08 | M65: Vodovodní přípojka PE D 32x3,0 mm:3,50*0,80*((1,75+1,35)/2-0,45)
C66: Odpočet objemu lože, potrubí a obsypů:-3,50*0,80*(0,15+0,032+0,30) | E66: -1.3496 | M66: Odpočet objemu lože, potrubí a obsypů:-3,50*0,80*(0,15+0,032+0,30)
C67: Konec provozního součtu | E67: 1.7304 | M67: Konec provozního součtu
A68: 14 | B68: 175101101R00 | C68: Obsyp potrubí bez prohození sypaniny | D68: m3 | E68: 1.324 | G68: =E68*F68 -> 0 | H68: 0 | I68: =E68*H68 -> 0 | J68: 0 | K68: =E68*J68 -> 0 | O68: 2 | AA68: 1 | AB68: 1 | AC68: 1 | AZ68: 1 | BA68: =IF(AZ68=1,G68,0) -> 0 | BB68: =IF(AZ68=2,G68,0) -> 0 | BC68: =IF(AZ68=3,G68,0) -> 0 | BD68: =IF(AZ68=4,G68,0) -> 0 | BE68: =IF(AZ68=5,G68,0) -> 0 | CA68: 1 | CB68: 1
C69: Vodovodní přípojka PE D 32x3,0 mm:5,00*(0,80*(0,032+0,30)-0,016^2*Pi) | E69: 1.324 | M69: Vodovodní přípojka PE D 32x3,0 mm:5,00*(0,80*(0,032+0,30)-0,016^2*Pi)
A70: 15 | B70: 199000002R00 | C70: Poplatek za skládku horniny 1- 7 č. dle katal. odpadů 17 05 04 | D70: m3 | E70: 5.3549 | G70: =E70*F70 -> 0 | H70: 0 | I70: =E70*H70 -> 0 | J70: 0 | K70: =E70*J70 -> 0 | O70: 2 | AA70: 1 | AB70: 1 | AC70: 1 | AZ70: 1 | BA70: =IF(AZ70=1,G70,0) -> 0 | BB70: =IF(AZ70=2,G70,0) -> 0 | BC70: =IF(AZ70=3,G70,0) -> 0 | BD70: =IF(AZ70=4,G70,0) -> 0 | BE70: =IF(AZ70=5,G70,0) -> 0 | CA70: 1 | CB70: 1
C71: Výkopy: | E71: 0 | M71: Výkopy:
C72: Vodovodní přípojka PE D 32x3,0 mm:3,50*0,80*((1,75+1,35)/2-0,45) | E72: 3.08 | M72: Vodovodní přípojka PE D 32x3,0 mm:3,50*0,80*((1,75+1,35)/2-0,45)
C73: 1,50*0,80*((1,75+1,35)/2-0,20) | E73: 1.62 | M73: 1,50*0,80*((1,75+1,35)/2-0,20)
C74: 1,50*1,50*(1,70-0,20) | E74: 3.375 | M74: 1,50*1,50*(1,70-0,20)
C75: Odpočet zásypů zeminou:-2,7201 | E75: -2.7201 | M75: Odpočet zásypů zeminou:-2,7201
A76: 16 | B76: 919735112R00 | C76: Řezání stávajícího živičného krytu tl. 5 - 10 cm | D76: m | E76: 7.8 | G76: =E76*F76 -> 0 | H76: 0 | I76: =E76*H76 -> 0 | J76: 0 | K76: =E76*J76 -> 0 | O76: 2 | AA76: 1 | AB76: 1 | AC76: 1 | AZ76: 1 | BA76: =IF(AZ76=1,G76,0) -> 0 | BB76: =IF(AZ76=2,G76,0) -> 0 | BC76: =IF(AZ76=3,G76,0) -> 0 | BD76: =IF(AZ76=4,G76,0) -> 0 | BE76: =IF(AZ76=5,G76,0) -> 0 | CA76: 1 | CB76: 1
C77: Vodovodní přípojka PE D 32x3,0 mm:3,50*2+0,80 | E77: 7.8 | M77: Vodovodní přípojka PE D 32x3,0 mm:3,50*2+0,80
A78: 17 | B78: 919735123R00 | C78: Řezání stávajícího betonového krytu tl. 10 - 15 cm | D78: m | E78: 7.8 | G78: =E78*F78 -> 0 | H78: 0 | I78: =E78*H78 -> 0 | J78: 0 | K78: =E78*J78 -> 0 | O78: 2 | AA78: 1 | AB78: 1 | AC78: 1 | AZ78: 1 | BA78: =IF(AZ78=1,G78,0) -> 0 | BB78: =IF(AZ78=2,G78,0) -> 0 | BC78: =IF(AZ78=3,G78,0) -> 0 | BD78: =IF(AZ78=4,G78,0) -> 0 | BE78: =IF(AZ78=5,G78,0) -> 0 | CA78: 1 | CB78: 1
C79: Vodovodní přípojka PE D 32x3,0 mm:3,50*2+0,80 | E79: 7.8 | M79: Vodovodní přípojka PE D 32x3,0 mm:3,50*2+0,80
A80: 18 | B80: 979082113RSZ | C80: Vodorovná doprava suti po suchu na skládku zhotovitele | D80: t | E80: 5.712 | G80: =E80*F80 -> 0 | H80: 0 | I80: =E80*H80 -> 0 | J80: 0 | K80: =E80*J80 -> 0 | O80: 2 | AA80: 1 | AB80: 1 | AC80: 1 | AZ80: 1 | BA80: =IF(AZ80=1,G80,0) -> 0 | BB80: =IF(AZ80=2,G80,0) -> 0 | BC80: =IF(AZ80=3,G80,0) -> 0 | BD80: =IF(AZ80=4,G80,0) -> 0 | BE80: =IF(AZ80=5,G80,0) -> 0 | CA80: 1 | CB80: 1
A81: 19 | B81: 979089001R00 | C81: Poplatek za skládku stavební suti štěrky z komunikací, skupina odpadu 010408 | D81: t | E81: 1.232 | G81: =E81*F81 -> 0 | H81: 0 | I81: =E81*H81 -> 0 | J81: 0 | K81: =E81*J81 -> 0 | O81: 2 | AA81: 1 | AB81: 1 | AC81: 1 | AZ81: 1 | BA81: =IF(AZ81=1,G81,0) -> 0 | BB81: =IF(AZ81=2,G81,0) -> 0 | BC81: =IF(AZ81=3,G81,0) -> 0 | BD81: =IF(AZ81=4,G81,0) -> 0 | BE81: =IF(AZ81=5,G81,0) -> 0 | CA81: 1 | CB81: 1
A82: 20 | B82: 979990103R00 | C82: Poplatek za skládku stavební suti beton skupina odpadu 170101 | D82: t | E82: 1.008 | G82: =E82*F82 -> 0 | H82: 0 | I82: =E82*H82 -> 0 | J82: 0 | K82: =E82*J82 -> 0 | O82: 2 | AA82: 1 | AB82: 1 | AC82: 1 | AZ82: 1 | BA82: =IF(AZ82=1,G82,0) -> 0 | BB82: =IF(AZ82=2,G82,0) -> 0 | BC82: =IF(AZ82=3,G82,0) -> 0 | BD82: =IF(AZ82=4,G82,0) -> 0 | BE82: =IF(AZ82=5,G82,0) -> 0 | CA82: 1 | CB82: 1
A83: 21 | B83: 979999995R00 | C83: Poplatek za reciklaci asfaltu, kusovost do 1600cm2 skupina 170302 | D83: t | E83: 0.616 | G83: =E83*F83 -> 0 | H83: 0 | I83: =E83*H83 -> 0 | J83: 0 | K83: =E83*J83 -> 0 | O83: 2 | AA83: 1 | AB83: 1 | AC83: 1 | AZ83: 1 | BA83: =IF(AZ83=1,G83,0) -> 0 | BB83: =IF(AZ83=2,G83,0) -> 0 | BC83: =IF(AZ83=3,G83,0) -> 0 | BD83: =IF(AZ83=4,G83,0) -> 0 | BE83: =IF(AZ83=5,G83,0) -> 0 | CA83: 1 | CB83: 1
C84: Položka je určena pro suť o velikosti kusu do 30x30 cm (technologický materiál určený k recyklaci). | L84: Položka je určena pro suť o velikosti kusu do 30x30 cm (technologický materiál určený k recyklaci). | O84: 3
A85: 22 | B85: 58337308R | C85: Štěrkopísek frakce 0-2 tř.B | D85: t | E85: 2.6383 | G85: =E85*F85 -> 0 | H85: 1 | I85: =E85*H85 -> 2.6383 | K85: =E85*J85 -> 0 | O85: 2 | AA85: 3 | AB85: 1 | AC85: 58337308R | AZ85: 1 | BA85: =IF(AZ85=1,G85,0) -> 0 | BB85: =IF(AZ85=2,G85,0) -> 0 | BC85: =IF(AZ85=3,G85,0) -> 0 | BD85: =IF(AZ85=4,G85,0) -> 0 | BE85: =IF(AZ85=5,G85,0) -> 0 | CA85: 3 | CB85: 1
C86: Vodovodní přípojka PE D 32x3,0 mm:5,00*(0,80*(0,032+0,30)-0,016^2*Pi)*1,973*1,01 | E86: 2.6383 | M86: Vodovodní přípojka PE D 32x3,0 mm:5,00*(0,80*(0,032+0,30)-0,016^2*Pi)*1,973*1,01
A87: 23 | B87: 58344197R | C87: Štěrkodrtě frakce 0-63 A | D87: t | E87: 3.2734 | G87: =E87*F87 -> 0 | H87: 1 | I87: =E87*H87 -> 3.2734 | K87: =E87*J87 -> 0 | O87: 2 | AA87: 3 | AB87: 1 | AC87: 58344197R | AZ87: 1 | BA87: =IF(AZ87=1,G87,0) -> 0 | BB87: =IF(AZ87=2,G87,0) -> 0 | BC87: =IF(AZ87=3,G87,0) -> 0 | BD87: =IF(AZ87=4,G87,0) -> 0 | BE87: =IF(AZ87=5,G87,0) -> 0 | CA87: 3 | CB87: 1
C88: Zásyp ŠD fr. 0-63 mm v komunikaci:1,7304*1,873*1,01 | E88: 3.2734 | M88: Zásyp ŠD fr. 0-63 mm v komunikaci:1,7304*1,873*1,01
C89: Začátek provozního součtu | E89: 0 | M89: Začátek provozního součtu
C90: Vodovodní přípojka PE D 32x3,0 mm:3,50*0,80*((1,75+1,35)/2-0,45) | E90: 3.08 | M90: Vodovodní přípojka PE D 32x3,0 mm:3,50*0,80*((1,75+1,35)/2-0,45)
C91: Odpočet objemu lože, potrubí a obsypů:-3,50*0,80*(0,15+0,032+0,30) | E91: -1.3496 | M91: Odpočet objemu lože, potrubí a obsypů:-3,50*0,80*(0,15+0,032+0,30)
C92: Konec provozního součtu | E92: 1.7304 | M92: Konec provozního součtu
B93: Celkem za | C93: 1 Zemní práce | G93: =SUM(G7:G92) -> 0 | I93: =SUM(I7:I92) -> 5.992598 | K93: =SUM(K7:K92) -> -2.856 | O93: 4 | BA93: =SUM(BA7:BA92) -> 0 | BB93: =SUM(BB7:BB92) -> 0 | BC93: =SUM(BC7:BC92) -> 0 | BD93: =SUM(BD7:BD92) -> 0 | BE93: =SUM(BE7:BE92) -> 0
A94: Díl: | B94: 45 | C94: Podkladní a vedlejší konstrukce | O94: 1
A95: 24 | B95: 451572111R00 | C95: Lože pod potrubí z kameniva těženého 0 - 4 mm | D95: m3 | E95: 0.6 | G95: =E95*F95 -> 0 | H95: 1.873 | I95: =E95*H95 -> 1.1238 | J95: 0 | K95: =E95*J95 -> 0 | O95: 2 | AA95: 1 | AB95: 1 | AC95: 1 | AZ95: 1 | BA95: =IF(AZ95=1,G95,0) -> 0 | BB95: =IF(AZ95=2,G95,0) -> 0 | BC95: =IF(AZ95=3,G95,0) -> 0 | BD95: =IF(AZ95=4,G95,0) -> 0 | BE95: =IF(AZ95=5,G95,0) -> 0 | CA95: 1 | CB95: 1
C96: Vodovodní přípojka PE D 32x3,0 mm:5,00*0,80*0,15 | E96: 0.6 | M96: Vodovodní přípojka PE D 32x3,0 mm:5,00*0,80*0,15
B97: Celkem za | C97: 45 Podkladní a vedlejší konstrukce | G97: =SUM(G94:G96) -> 0 | I97: =SUM(I94:I96) -> 1.1238 | K97: =SUM(K94:K96) -> 0 | O97: 4 | BA97: =SUM(BA94:BA96) -> 0 | BB97: =SUM(BB94:BB96) -> 0 | BC97: =SUM(BC94:BC96) -> 0 | BD97: =SUM(BD94:BD96) -> 0 | BE97: =SUM(BE94:BE96) -> 0
A98: Díl: | B98: 5 | C98: Komunikace | O98: 1
A99: 25 | B99: 566903111R00 | C99: Vyspravení podkladu po překopech kam.hrubě drceným | D99: t | E99: 1.0489 | G99: =E99*F99 -> 0 | H99: 1.1 | I99: =E99*H99 -> 1.15379 | J99: 0 | K99: =E99*J99 -> 0 | O99: 2 | AA99: 1 | AB99: 1 | AC99: 1 | AZ99: 1 | BA99: =IF(AZ99=1,G99,0) -> 0 | BB99: =IF(AZ99=2,G99,0) -> 0 | BC99: =IF(AZ99=3,G99,0) -> 0 | BD99: =IF(AZ99=4,G99,0) -> 0 | BE99: =IF(AZ99=5,G99,0) -> 0 | CA99: 1 | CB99: 1
C100: Vodovodní přípojka PE D 32x3,0 mm:3,50*0,80*0,20*1,873 | E100: 1.0489 | M100: Vodovodní přípojka PE D 32x3,0 mm:3,50*0,80*0,20*1,873
A101: 26 | B101: 566904111R00 | C101: Vyspravení podkladu po překopech kam.obal.asfaltem | D101: t | E101: 0.7 | G101: =E101*F101 -> 0 | H101: 1 | I101: =E101*H101 -> 0.7 | J101: 0 | K101: =E101*J101 -> 0 | O101: 2 | AA101: 1 | AB101: 1 | AC101: 1 | AZ101: 1 | BA101: =IF(AZ101=1,G101,0) -> 0 | BB101: =IF(AZ101=2,G101,0) -> 0 | BC101: =IF(AZ101=3,G101,0) -> 0 | BD101: =IF(AZ101=4,G101,0) -> 0 | BE101: =IF(AZ101=5,G101,0) -> 0 | CA101: 1 | CB101: 1
C102: Vodovodní přípojka PE D 32x3,0 mm:3,50*0,80*0,10*2,5 | E102: 0.7 | M102: Vodovodní přípojka PE D 32x3,0 mm:3,50*0,80*0,10*2,5
A103: 27 | B103: 566905111R00 | C103: Vyspravení podkladu po překopech podklad.betonem | D103: m3 | E103: 0.42 | G103: =E103*F103 -> 0 | H103: 2.5 | I103: =E103*H103 -> 1.05 | J103: 0 | K103: =E103*J103 -> 0 | O103: 2 | AA103: 1 | AB103: 1 | AC103: 1 | AZ103: 1 | BA103: =IF(AZ103=1,G103,0) -> 0 | BB103: =IF(AZ103=2,G103,0) -> 0 | BC103: =IF(AZ103=3,G103,0) -> 0 | BD103: =IF(AZ103=4,G103,0) -> 0 | BE103: =IF(AZ103=5,G103,0) -> 0 | CA103: 1 | CB103: 1
C104: Vodovodní přípojka PE D 32x3,0 mm:3,50*0,80*0,15 | E104: 0.42 | M104: Vodovodní přípojka PE D 32x3,0 mm:3,50*0,80*0,15
A105: 28 | B105: 573111121R00 | C105: Postřik infiltr., množství zbytkov. poj. 0,60kg/m2 | D105: m2 | E105: 2.8 | G105: =E105*F105 -> 0 | H105: 0.00561 | I105: =E105*H105 -> 0.015708 | J105: 0 | K105: =E105*J105 -> 0 | O105: 2 | AA105: 1 | AB105: 1 | AC105: 1 | AZ105: 1 | BA105: =IF(AZ105=1,G105,0) -> 0 | BB105: =IF(AZ105=2,G105,0) -> 0 | BC105: =IF(AZ105=3,G105,0) -> 0 | BD105: =IF(AZ105=4,G105,0) -> 0 | BE105: =IF(AZ105=5,G105,0) -> 0 | CA105: 1 | CB105: 1
C106: Vodovodní přípojka PE D 32x3,0 mm:3,50*0,80 | E106: 2.8 | M106: Vodovodní přípojka PE D 32x3,0 mm:3,50*0,80
B107: Celkem za | C107: 5 Komunikace | G107: =SUM(G98:G106) -> 0 | I107: =SUM(I98:I106) -> 2.919498 | K107: =SUM(K98:K106) -> 0 | O107: 4 | BA107: =SUM(BA98:BA106) -> 0 | BB107: =SUM(BB98:BB106) -> 0 | BC107: =SUM(BC98:BC106) -> 0 | BD107: =SUM(BD98:BD106) -> 0 | BE107: =SUM(BE98:BE106) -> 0
A108: Díl: | B108: 8 | C108: Trubní vedení | O108: 1
A109: 29 | B109: 871161121R00 | C109: Montáž trubek polyetylenových ve výkopu d 32 mm | D109: m | E109: 5 | G109: =E109*F109 -> 0 | H109: 0 | I109: =E109*H109 -> 0 | J109: 0 | K109: =E109*J109 -> 0 | O109: 2 | AA109: 1 | AB109: 1 | AC109: 1 | AZ109: 1 | BA109: =IF(AZ109=1,G109,0) -> 0 | BB109: =IF(AZ109=2,G109,0) -> 0 | BC109: =IF(AZ109=3,G109,0) -> 0 | BD109: =IF(AZ109=4,G109,0) -> 0 | BE109: =IF(AZ109=5,G109,0) -> 0 | CA109: 1 | CB109: 1
C110: V položce je uvažováno použití svitku. | L110: V položce je uvažováno použití svitku. | O110: 3
C111: Vodovodní přípojka PE D 32x3,0 mm:5,00 | E111: 5 | M111: Vodovodní přípojka PE D 32x3,0 mm:5,00
A112: 30 | B112: 891269111R00 | C112: Montáž navrtávacích pasů DN 100 | D112: kus | E112: 1 | G112: =E112*F112 -> 0 | H112: 0 | I112: =E112*H112 -> 0 | J112: 0 | K112: =E112*J112 -> 0 | O112: 2 | AA112: 1 | AB112: 1 | AC112: 1 | AZ112: 1 | BA112: =IF(AZ112=1,G112,0) -> 0 | BB112: =IF(AZ112=2,G112,0) -> 0 | BC112: =IF(AZ112=3,G112,0) -> 0 | BD112: =IF(AZ112=4,G112,0) -> 0 | BE112: =IF(AZ112=5,G112,0) -> 0 | CA112: 1 | CB112: 1
C113: Položka je určena pro montáž navrtávacích pasů s ventilem Jt 1 MPa na potrubí z trub osinkocementových, litinových, ocelových nebo plastckých hmot. | L113: Položka je určena pro montáž navrtávacích pasů s ventilem Jt 1 MPa na potrubí z trub osinkocementových, litinových, ocelových nebo plastckých hmot. | O113: 3
C114: V položce jsou zakalkulovány i náklady na jejich montáž a výkop montážních jamek; na opravu izolace ocelových trubek a na osazení zemních souprav. | L114: V položce jsou zakalkulovány i náklady na jejich montáž a výkop montážních jamek; na opravu izolace ocelových trubek a na osazení zemních souprav. | O114: 3
C115: Vodovodní přípojka PE D 32x3,0 mm: | E115: 0 | M115: Vodovodní přípojka PE D 32x3,0 mm:
C116: NP DN100/1":1 | E116: 1 | M116: NP DN100/1":1
A117: 31 | B117: 892233111R00 | C117: Desinfekce vodovodního potrubí DN 70 | D117: m | E117: 5 | G117: =E117*F117 -> 0 | H117: 0 | I117: =E117*H117 -> 0 | J117: 0 | K117: =E117*J117 -> 0 | O117: 2 | AA117: 1 | AB117: 1 | AC117: 1 | AZ117: 1 | BA117: =IF(AZ117=1,G117,0) -> 0 | BB117: =IF(AZ117=2,G117,0) -> 0 | BC117: =IF(AZ117=3,G117,0) -> 0 | BD117: =IF(AZ117=4,G117,0) -> 0 | BE117: =IF(AZ117=5,G117,0) -> 0 | CA117: 1 | CB117: 1
C118: V položce jsou zakalkulovány náklady na napuštění a vypuštění vody, dodání vody a desinfekčního prostředku a na bakteriologický rozbor vody. | L118: V položce jsou zakalkulovány náklady na napuštění a vypuštění vody, dodání vody a desinfekčního prostředku a na bakteriologický rozbor vody. | O118: 3
C119: Vodovodní přípojka PE D 32x3,0 mm:5,00 | E119: 5 | M119: Vodovodní přípojka PE D 32x3,0 mm:5,00
A120: 32 | B120: 892241111R00 | C120: Tlaková zkouška vodovodního potrubí DN 80 včetně zajištění konců potrubí | D120: m | E120: 5 | G120: =E120*F120 -> 0 | H120: 0 | I120: =E120*H120 -> 0 | J120: 0 | K120: =E120*J120 -> 0 | O120: 2 | AA120: 1 | AB120: 1 | AC120: 1 | AZ120: 1 | BA120: =IF(AZ120=1,G120,0) -> 0 | BB120: =IF(AZ120=2,G120,0) -> 0 | BC120: =IF(AZ120=3,G120,0) -> 0 | BD120: =IF(AZ120=4,G120,0) -> 0 | BE120: =IF(AZ120=5,G120,0) -> 0 | CA120: 1 | CB120: 1
C121: V položce jsou započteny náklady na přísun, montáž, demontáž a odsun zkoušecího čerpadla, napuštění tlakovou vodou a dodání vody pro tlakovou zkoušku. | L121: V položce jsou započteny náklady na přísun, montáž, demontáž a odsun zkoušecího čerpadla, napuštění tlakovou vodou a dodání vody pro tlakovou zkoušku. | O121: 3
C122: Vodovodní přípojka PE D 32x3,0 mm:5,00 | E122: 5 | M122: Vodovodní přípojka PE D 32x3,0 mm:5,00
A123: 33 | B123: 893411011RRX | C123: Šachta vodoměrná dle PD průměr D1200 včetně poklopu | D123: kus | E123: 1 | G123: =E123*F123 -> 0 | H123: 5.13 | I123: =E123*H123 -> 5.13 | J123: 0 | K123: =E123*J123 -> 0 | O123: 2 | AA123: 1 | AB123: 1 | AC123: 1 | AZ123: 1 | BA123: =IF(AZ123=1,G123,0) -> 0 | BB123: =IF(AZ123=2,G123,0) -> 0 | BC123: =IF(AZ123=3,G123,0) -> 0 | BD123: =IF(AZ123=4,G123,0) -> 0 | BE123: =IF(AZ123=5,G123,0) -> 0 | CA123: 1 | CB123: 1
C124: Součástí položky je: | L124: Součástí položky je: | O124: 3
C125: - dodávka a montáž vodoměrné plastové šachty D 1200 mm a výška 1200 mm včetně vstupního komínku výšky 300 mm. Soušástí VŠ je i vstupní plastový žebřík. | L125: - dodávka a montáž vodoměrné plastové šachty D 1200 mm a výška 1200 mm včetně vstupního komínku výšky 300 mm. Soušástí VŠ je i vstupní plastový žebřík. | O125: 3
C126: - dodávka a montáž plastového poklopu DN600 | L126: - dodávka a montáž plastového poklopu DN600 | O126: 3
C127: Provedení dle PD | L127: Provedení dle PD | O127: 3
C128: Vodovodní přípojka PE D 32x3,0 mm: | E128: 0 | M128: Vodovodní přípojka PE D 32x3,0 mm:
C129: Vodoměrná šachta:1 | E129: 1 | M129: Vodoměrná šachta:1
A130: 34 | B130: 899000001RA0 | C130: D+M - Vodoměrná sestava D 32 dle PD | D130: soubor | E130: 1 | G130: =E130*F130 -> 0 | H130: 0 | I130: =E130*H130 -> 0 | J130: 0 | K130: =E130*J130 -> 0 | O130: 2 | AA130: 1 | AB130: 1 | AC130: 1 | AZ130: 1 | BA130: =IF(AZ130=1,G130,0) -> 0 | BB130: =IF(AZ130=2,G130,0) -> 0 | BC130: =IF(AZ130=3,G130,0) -> 0 | BD130: =IF(AZ130=4,G130,0) -> 0 | BE130: =IF(AZ130=5,G130,0) -> 0 | CA130: 1 | CB130: 1
C131: Provedení dle standartů VHS Turnov a provozovatele. | L131: Provedení dle standartů VHS Turnov a provozovatele. | O131: 3
C132: Vodovodní přípojka PE D 32x3,0 mm: | E132: 0 | M132: Vodovodní přípojka PE D 32x3,0 mm:
C133: Vodoměrná sestava umístěná ve VŠ:1 | E133: 1 | M133: Vodoměrná sestava umístěná ve VŠ:1
A134: 35 | B134: 899401111R00 | C134: Osazení poklopů litinových ventilových | D134: kus | E134: 1 | G134: =E134*F134 -> 0 | H134: 0.06383 | I134: =E134*H134 -> 0.06383 | J134: 0 | K134: =E134*J134 -> 0 | O134: 2 | AA134: 1 | AB134: 1 | AC134: 1 | AZ134: 1 | BA134: =IF(AZ134=1,G134,0) -> 0 | BB134: =IF(AZ134=2,G134,0) -> 0 | BC134: =IF(AZ134=3,G134,0) -> 0 | BD134: =IF(AZ134=4,G134,0) -> 0 | BE134: =IF(AZ134=5,G134,0) -> 0 | CA134: 1 | CB134: 1
C135: Vodovodní přípojka PE D 32x3,0 mm:1 | E135: 1 | M135: Vodovodní přípojka PE D 32x3,0 mm:1
A136: 36 | B136: 899713111RRX | C136: Orientační tabulky na sloupku ocelovém, betonovém | D136: kus | E136: 1 | G136: =E136*F136 -> 0 | H136: 0.00024 | I136: =E136*H136 -> 0.00024 | J136: 0 | K136: =E136*J136 -> 0 | O136: 2 | AA136: 1 | AB136: 1 | AC136: 1 | AZ136: 1 | BA136: =IF(AZ136=1,G136,0) -> 0 | BB136: =IF(AZ136=2,G136,0) -> 0 | BC136: =IF(AZ136=3,G136,0) -> 0 | BD136: =IF(AZ136=4,G136,0) -> 0 | BE136: =IF(AZ136=5,G136,0) -> 0 | CA136: 1 | CB136: 1
C137: Položka platí pro orientační tabulky na vodovodních a kanalizačních řadech. V položce jsou zakalkulovány náklady na dodání a připevnění tabulky a na osazení sloupku. V položce jsou zakalkulovány náklady na zemní práce a na dodání sloupků (betonových nebo ocelových s betonovými patkami) | L137: Položka platí pro orientační tabulky na vodovodních a kanalizačních řadech. V položce jsou zakalkulovány náklady na dodání a připevnění tabulky a na osazení sloupku. V položce jsou zakalkulovány náklady na zemní práce a na dodání sloupků (betonových nebo ocelových s betonovými patkami) | O137: 3
C138: Vodovodní přípojka PE D 32x3,0 mm:1 | E138: 1 | M138: Vodovodní přípojka PE D 32x3,0 mm:1
A139: 37 | B139: 899721112R00 | C139: Fólie výstražná z PVC bílá, šířka 30 cm | D139: m | E139: 5 | G139: =E139*F139 -> 0 | H139: 0 | I139: =E139*H139 -> 0 | J139: 0 | K139: =E139*J139 -> 0 | O139: 2 | AA139: 1 | AB139: 1 | AC139: 1 | AZ139: 1 | BA139: =IF(AZ139=1,G139,0) -> 0 | BB139: =IF(AZ139=2,G139,0) -> 0 | BC139: =IF(AZ139=3,G139,0) -> 0 | BD139: =IF(AZ139=4,G139,0) -> 0 | BE139: =IF(AZ139=5,G139,0) -> 0 | CA139: 1 | CB139: 1
C140: Vodovodní přípojka PE D 32x3,0 mm:5,00 | E140: 5 | M140: Vodovodní přípojka PE D 32x3,0 mm:5,00
A141: 38 | B141: 899731114R00 | C141: Vodič signalizační CYY 6 mm2 | D141: m | E141: 9 | G141: =E141*F141 -> 0 | H141: 8e-05 | I141: =E141*H141 -> 0.00072 | J141: 0 | K141: =E141*J141 -> 0 | O141: 2 | AA141: 1 | AB141: 1 | AC141: 1 | AZ141: 1 | BA141: =IF(AZ141=1,G141,0) -> 0 | BB141: =IF(AZ141=2,G141,0) -> 0 | BC141: =IF(AZ141=3,G141,0) -> 0 | BD141: =IF(AZ141=4,G141,0) -> 0 | BE141: =IF(AZ141=5,G141,0) -> 0 | CA141: 1 | CB141: 1
C142: Součástí položky je zajištění proměření vodiče a výchozí zevize. | L142: Součástí položky je zajištění proměření vodiče a výchozí zevize. | O142: 3
C143: Vodovodní přípojka PE D 32x3,0 mm:5,00 | E143: 5 | M143: Vodovodní přípojka PE D 32x3,0 mm:5,00
C144: Vyvedení pro ZŠ:2,00*2*1 | E144: 4 | M144: Vyvedení pro ZŠ:2,00*2*1
A145: 39 | B145: 42201650.R | C145: Poklop uliční ventilový 1650 - voda | D145: kus | E145: 1 | G145: =E145*F145 -> 0 | H145: 0.0113 | I145: =E145*H145 -> 0.0113 | K145: =E145*J145 -> 0 | O145: 2 | AA145: 3 | AB145: 1 | AC145: 42201650.R | AZ145: 1 | BA145: =IF(AZ145=1,G145,0) -> 0 | BB145: =IF(AZ145=2,G145,0) -> 0 | BC145: =IF(AZ145=3,G145,0) -> 0 | BD145: =IF(AZ145=4,G145,0) -> 0 | BE145: =IF(AZ145=5,G145,0) -> 0 | CA145: 3 | CB145: 1
C146: Vodovodní přípojka PE D 32x3,0 mm:1 | E146: 1 | M146: Vodovodní přípojka PE D 32x3,0 mm:1
A147: 40 | B147: 42202800.02.R | C147: Šoupátko domovní č.2800 32-5/4" | D147: kus | E147: 1 | G147: =E147*F147 -> 0 | H147: 0.0052 | I147: =E147*H147 -> 0.0052 | K147: =E147*J147 -> 0 | O147: 2 | AA147: 3 | AB147: 1 | AC147: 42202800.02.R | AZ147: 1 | BA147: =IF(AZ147=1,G147,0) -> 0 | BB147: =IF(AZ147=2,G147,0) -> 0 | BC147: =IF(AZ147=3,G147,0) -> 0 | BD147: =IF(AZ147=4,G147,0) -> 0 | BE147: =IF(AZ147=5,G147,0) -> 0 | CA147: 3 | CB147: 1
C148: Vodovodní přípojka PE D 32x3,0 mm: | E148: 0 | M148: Vodovodní přípojka PE D 32x3,0 mm:
C149: Šoupátko ISO domovní přípojky 32 - 5/4":1 | E149: 1 | M149: Šoupátko ISO domovní přípojky 32 - 5/4":1
A150: 41 | B150: 42203370.08.R | C150: Pás navrtávací Hacom č.3370 DN 100/1" | D150: kus | E150: 1 | G150: =E150*F150 -> 0 | H150: 0.0088 | I150: =E150*H150 -> 0.0088 | K150: =E150*J150 -> 0 | O150: 2 | AA150: 3 | AB150: 1 | AC150: 42203370.08.R | AZ150: 1 | BA150: =IF(AZ150=1,G150,0) -> 0 | BB150: =IF(AZ150=2,G150,0) -> 0 | BC150: =IF(AZ150=3,G150,0) -> 0 | BD150: =IF(AZ150=4,G150,0) -> 0 | BE150: =IF(AZ150=5,G150,0) -> 0 | CA150: 3 | CB150: 1
C151: Vodovodní přípojka PE D 32x3,0 mm: | E151: 0 | M151: Vodovodní přípojka PE D 32x3,0 mm:
C152: NP DN100/1":1 | E152: 1 | M152: NP DN100/1":1
A153: 42 | B153: 42203481.R | C153: Podkladová deska č. 3481 | D153: kus | E153: 1 | G153: =E153*F153 -> 0 | H153: 0.0006 | I153: =E153*H153 -> 0.0006 | K153: =E153*J153 -> 0 | O153: 2 | AA153: 3 | AB153: 1 | AC153: 42203481.R | AZ153: 1 | BA153: =IF(AZ153=1,G153,0) -> 0 | BB153: =IF(AZ153=2,G153,0) -> 0 | BC153: =IF(AZ153=3,G153,0) -> 0 | BD153: =IF(AZ153=4,G153,0) -> 0 | BE153: =IF(AZ153=5,G153,0) -> 0 | CA153: 3 | CB153: 1
C154: Vodovodní přípojka PE D 32x3,0 mm:1 | E154: 1 | M154: Vodovodní přípojka PE D 32x3,0 mm:1
A155: 43 | B155: 42209601.R | C155: Zemní souprava tel. (1,3 - 1,8 m) č.9601 3/4-2" | D155: kus | E155: 1 | G155: =E155*F155 -> 0 | H155: 0.0025 | I155: =E155*H155 -> 0.0025 | K155: =E155*J155 -> 0 | O155: 2 | AA155: 3 | AB155: 1 | AC155: 42209601.R | AZ155: 1 | BA155: =IF(AZ155=1,G155,0) -> 0 | BB155: =IF(AZ155=2,G155,0) -> 0 | BC155: =IF(AZ155=3,G155,0) -> 0 | BD155: =IF(AZ155=4,G155,0) -> 0 | BE155: =IF(AZ155=5,G155,0) -> 0 | CA155: 3 | CB155: 1
C156: Vodovodní přípojka PE D 32x3,0 mm: | E156: 0 | M156: Vodovodní přípojka PE D 32x3,0 mm:
C157: Pro NP DN100/1":1 | E157: 1 | M157: Pro NP DN100/1":1
B158: Celkem za | C158: 8 Trubní vedení | G158: =SUM(G108:G157) -> 0 | I158: =SUM(I108:I157) -> 5.22319 | K158: =SUM(K108:K157) -> 0 | O158: 4 | BA158: =SUM(BA108:BA157) -> 0 | BB158: =SUM(BB108:BB157) -> 0 | BC158: =SUM(BC108:BC157) -> 0 | BD158: =SUM(BD108:BD157) -> 0 | BE158: =SUM(BE108:BE157) -> 0
A159: Díl: | B159: 99 | C159: Staveništní přesun hmot | O159: 1
A160: 44 | B160: 998276101R00 | C160: Přesun hmot, trubní vedení plastová, otevř. výkop | D160: t | E160: 15.259086 | G160: =E160*F160 -> 0 | H160: 0 | I160: =E160*H160 -> 0 | K160: =E160*J160 -> 0 | O160: 2 | AA160: 7 | AB160: 1 | AC160: 2 | AZ160: 1 | BA160: =IF(AZ160=1,G160,0) -> 0 | BB160: =IF(AZ160=2,G160,0) -> 0 | BC160: =IF(AZ160=3,G160,0) -> 0 | BD160: =IF(AZ160=4,G160,0) -> 0 | BE160: =IF(AZ160=5,G160,0) -> 0 | CA160: 7 | CB160: 1
B161: Celkem za | C161: 99 Staveništní přesun hmot | G161: =SUM(G159:G160) -> 0 | I161: =SUM(I159:I160) -> 0 | K161: =SUM(K159:K160) -> 0 | O161: 4 | BA161: =SUM(BA159:BA160) -> 0 | BB161: =SUM(BB159:BB160) -> 0 | BC161: =SUM(BC159:BC160) -> 0 | BD161: =SUM(BD159:BD160) -> 0 | BE161: =SUM(BE159:BE160) -> 0

Sheet 320 3357320 KL
A1: POLOŽKOVÝ ROZPOČET
A2: Rozpočet | C2: 3357/320 | D2: Kanalizační přípojka | F2: JKSO | G2: 827.29
A4: Objekt | F4: SKP
A5: 320 | C5: Kanalizační přípojka | F5: Měrná jednotka | G5: m
A6: Stavba | F6: Počet jednotek | G6: 5
A7: 3357 | C7: Přípojky pro p.p.č. 1005/8 v k.ú. Turnov | F7: Náklady na m.j. | G7: =IF(G6=0,,ROUND((F30+F32)/G6,1)) -> 0
A8: Projektant | C8: JENA-CZ s.r.o. | F8: Typ rozpočtu
A9: Zpracovatel projektu
A10: Objednatel | C10: Město TURNOV
A11: Dodavatel | C11: . | F11: Zakázkové číslo
A12: Rozpočtoval | F12: Počet listů
A13: ROZPOČTOVÉ NÁKLADY
A14: Základní rozpočtové náklady | D14: Ostatní rozpočtové náklady
B15: HSV celkem | C15: ='320 3357320 Rek'!E12 -> 0 | D15: ='320 3357320 Rek'!A17 -> Zařízení staveniště | G15: ='320 3357320 Rek'!I17 -> 0
A16: Z | B16: PSV celkem | C16: ='320 3357320 Rek'!F12 -> 0 | D16: ='320 3357320 Rek'!A18 -> Kompletační činnost (IČD) | G16: ='320 3357320 Rek'!I18 -> 0
A17: R | B17: M práce celkem | C17: ='320 3357320 Rek'!H12 -> 0 | D17: ='320 3357320 Rek'!A19 -> Vytýčení stavby a podz. inženýrských sítí | G17: ='320 3357320 Rek'!I19 -> 0
A18: N | B18: M dodávky celkem | C18: ='320 3357320 Rek'!G12 -> 0 | D18: ='320 3357320 Rek'!A20 -> Dokumentace skutečného provedení | G18: ='320 3357320 Rek'!I20 -> 0
A19: ZRN celkem | C19: =SUM(C15:C18) -> 0 | D19: ='320 3357320 Rek'!A21 -> Geodetické zaměření stavby | G19: ='320 3357320 Rek'!I21 -> 0
D20: ='320 3357320 Rek'!A22 -> DIO | G20: ='320 3357320 Rek'!I22 -> 0
A21: HZS | C21: ='320 3357320 Rek'!I12 -> 0
A22: ZRN+HZS | C22: =C19+C21 -> 0
A23: ZRN+ost.náklady+HZS | C23: =C22+G23 -> 0 | D23: Ostatní náklady celkem | G23: ='320 3357320 Rek'!H23 -> 0
A24: Vypracoval | D24: Za zhotovitele | F24: Za objednatele
A25: Jméno : | D25: Jméno : | F25: Jméno :
A26: Datum : | D26: Datum : | F26: Datum :
A28: Podpis : | D28: Podpis: | F28: Podpis:
A30: Základ pro DPH | C30: 21 | D30: % | F30: =C23-F32 -> 0
A31: DPH | C31: =C30 -> 21 | D31: % | F31: =ROUND(PRODUCT(F30,C31/100),0) -> 0
A32: Základ pro DPH | C32: 0 | D32: % | F32: 0
A33: DPH | C33: =C32 -> 0 | D33: % | F33: =ROUND(PRODUCT(F32,C33/100),0) -> 0
A34: CENA ZA OBJEKT CELKEM | F34: =ROUND(SUM(F30:F33),0) -> 0
A36: Poznámka :

Sheet 320 3357320 Rek
A1: Stavba : | C1: 3357 Přípojky pro p.p.č. 1005/8 v k.ú. Turnov | G1: Rozpočet : | H1: 3357/320
A2: Objekt : | C2: 320 Kanalizační přípojka | G2: Kanalizační přípojka
A4: REKAPITULACE STAVEBNÍCH DÍLŮ
B6: Stavební díl | E6: HSV | F6: PSV | G6: Dodávka | H6: Montáž | I6: HZS
A7: ='320 3357320 Pol'!B7 -> 1 | B7: ='320 3357320 Pol'!C7 -> Zemní práce | E7: ='320 3357320 Pol'!BA108 -> 0 | F7: ='320 3357320 Pol'!BB108 -> 0 | G7: ='320 3357320 Pol'!BC108 -> 0 | H7: ='320 3357320 Pol'!BD108 -> 0 | I7: ='320 3357320 Pol'!BE108 -> 0
A8: ='320 3357320 Pol'!B109 -> 45 | B8: ='320 3357320 Pol'!C109 -> Podkladní a vedlejší konstrukce | E8: ='320 3357320 Pol'!BA113 -> 0 | F8: ='320 3357320 Pol'!BB113 -> 0 | G8: ='320 3357320 Pol'!BC113 -> 0 | H8: ='320 3357320 Pol'!BD113 -> 0 | I8: ='320 3357320 Pol'!BE113 -> 0
A9: ='320 3357320 Pol'!B114 -> 5 | B9: ='320 3357320 Pol'!C114 -> Komunikace | E9: ='320 3357320 Pol'!BA127 -> 0 | F9: ='320 3357320 Pol'!BB127 -> 0 | G9: ='320 3357320 Pol'!BC127 -> 0 | H9: ='320 3357320 Pol'!BD127 -> 0 | I9: ='320 3357320 Pol'!BE127 -> 0
A10: ='320 3357320 Pol'!B128 -> 8 | B10: ='320 3357320 Pol'!C128 -> Trubní vedení | E10: ='320 3357320 Pol'!BA154 -> 0 | F10: ='320 3357320 Pol'!BB154 -> 0 | G10: ='320 3357320 Pol'!BC154 -> 0 | H10: ='320 3357320 Pol'!BD154 -> 0 | I10: ='320 3357320 Pol'!BE154 -> 0
A11: ='320 3357320 Pol'!B155 -> 99 | B11: ='320 3357320 Pol'!C155 -> Staveništní přesun hmot | E11: ='320 3357320 Pol'!BA157 -> 0 | F11: ='320 3357320 Pol'!BB157 -> 0 | G11: ='320 3357320 Pol'!BC157 -> 0 | H11: ='320 3357320 Pol'!BD157 -> 0 | I11: ='320 3357320 Pol'!BE157 -> 0
B12: CELKEM OBJEKT | E12: =SUM(E7:E11) -> 0 | F12: =SUM(F7:F11) -> 0 | G12: =SUM(G7:G11) -> 0 | H12: =SUM(H7:H11) -> 0 | I12: =SUM(I7:I11) -> 0
A14: VEDLEJŠÍ ROZPOČTOVÉ NÁKLADY
A16: Název VRN | E16: Kč | I16: Kč
A17: Zařízení staveniště | E17: 0 | I17: =E17+F17*G17/100 -> 0 | BA17: 2
A18: Kompletační činnost (IČD) | E18: 0 | I18: 0 | BA18: 2
A19: Vytýčení stavby a podz. inženýrských sítí | E19: 0 | I19: 0 | BA19: 0
A20: Dokumentace skutečného provedení | E20: 0 | I20: 0 | BA20: 0
A21: Geodetické zaměření stavby | E21: 0 | I21: 0 | BA21: 0
A22: DIO | E22: 0 | I22: 0 | BA22: 0
B23: CELKEM VRN | H23: =SUM(I17:I22) -> 0

Sheet 320 3357320 Pol
A1: Položkový rozpočet
A3: Stavba : | C3: 3357 Přípojky pro p.p.č. 1005/8 v k.ú. Turnov | E3: Rozpočet: | F3: ='320 3357320 Rek'!H1 -> 3357/320
A4: Objekt : | C4: 320 Kanalizační přípojka | E4: ='320 3357320 Rek'!G2 -> Kanalizační přípojka
A6: P.č. | B6: Číslo položky | C6: Název položky | D6: MJ | E6: množství | F6: cena / MJ | G6: celkem (Kč) | H6: Jednotková hmotnost | I6: Celková hmotnost | J6: Jednotková dem.hmot. | K6: Celková dem.hmot.
A7: Díl: | B7: 1 | C7: Zemní práce | O7: 1
A8: 1 | B8: 113107520R00 | C8: Odstranění podkladu pl. 50 m2,kam.drcené tl.20 cm | D8: m2 | E8: 5.6 | G8: =E8*F8 -> 0 | H8: 0 | I8: =E8*H8 -> 0 | J8: -0.44 | K8: =E8*J8 -> -2.464 | O8: 2 | AA8: 1 | AB8: 1 | AC8: 1 | AZ8: 1 | BA8: =IF(AZ8=1,G8,0) -> 0 | BB8: =IF(AZ8=2,G8,0) -> 0 | BC8: =IF(AZ8=3,G8,0) -> 0 | BD8: =IF(AZ8=4,G8,0) -> 0 | BE8: =IF(AZ8=5,G8,0) -> 0 | CA8: 1 | CB8: 1
C9: KP PVC DN150:4,00*0,80 | E9: 3.2 | M9: KP PVC DN150:4,00*0,80
C10: Napojení na stávající stoku DN400:2,00*1,20 | E10: 2.4 | M10: Napojení na stávající stoku DN400:2,00*1,20
A11: 2 | B11: 113108310R00 | C11: Odstranění asfaltové vrstvy pl. do 50 m2, tl.10 cm | D11: m2 | E11: 5.6 | G11: =E11*F11 -> 0 | H11: 0 | I11: =E11*H11 -> 0 | J11: -0.22 | K11: =E11*J11 -> -1.232 | O11: 2 | AA11: 1 | AB11: 1 | AC11: 1 | AZ11: 1 | BA11: =IF(AZ11=1,G11,0) -> 0 | BB11: =IF(AZ11=2,G11,0) -> 0 | BC11: =IF(AZ11=3,G11,0) -> 0 | BD11: =IF(AZ11=4,G11,0) -> 0 | BE11: =IF(AZ11=5,G11,0) -> 0 | CA11: 1 | CB11: 1
C12: KP PVC DN150:4,00*0,80 | E12: 3.2 | M12: KP PVC DN150:4,00*0,80
C13: Napojení na stávající stoku DN400:2,00*1,20 | E13: 2.4 | M13: Napojení na stávající stoku DN400:2,00*1,20
A14: 3 | B14: 113109315R00 | C14: Odstranění podkladu pl.50 m2, bet.prostý tl.15 cm | D14: m2 | E14: 5.6 | G14: =E14*F14 -> 0 | H14: 0 | I14: =E14*H14 -> 0 | J14: -0.36 | K14: =E14*J14 -> -2.016 | O14: 2 | AA14: 1 | AB14: 1 | AC14: 1 | AZ14: 1 | BA14: =IF(AZ14=1,G14,0) -> 0 | BB14: =IF(AZ14=2,G14,0) -> 0 | BC14: =IF(AZ14=3,G14,0) -> 0 | BD14: =IF(AZ14=4,G14,0) -> 0 | BE14: =IF(AZ14=5,G14,0) -> 0 | CA14: 1 | CB14: 1
C15: KP PVC DN150:4,00*0,80 | E15: 3.2 | M15: KP PVC DN150:4,00*0,80
C16: Napojení na stávající stoku DN400:2,00*1,20 | E16: 2.4 | M16: Napojení na stávající stoku DN400:2,00*1,20
A17: 4 | B17: 119001401R00 | C17: Dočasné zajištění ocelového potrubí do DN 200 mm | D17: m | E17: 2.4 | G17: =E17*F17 -> 0 | H17: 0.00869 | I17: =E17*H17 -> 0.020856 | J17: 0 | K17: =E17*J17 -> 0 | O17: 2 | AA17: 1 | AB17: 1 | AC17: 1 | AZ17: 1 | BA17: =IF(AZ17=1,G17,0) -> 0 | BB17: =IF(AZ17=2,G17,0) -> 0 | BC17: =IF(AZ17=3,G17,0) -> 0 | BD17: =IF(AZ17=4,G17,0) -> 0 | BE17: =IF(AZ17=5,G17,0) -> 0 | CA17: 1 | CB17: 1
C18: KP PVC DN150: | E18: 0 | M18: KP PVC DN150:
C19: Vodovod :0,80*2 | E19: 1.6 | M19: Vodovod :0,80*2
C20: STL plyn:0,80*1 | E20: 0.8 | M20: STL plyn:0,80*1
A21: 5 | B21: 119001421R00 | C21: Dočasné zajištění kabelů - do počtu 3 kabelů | D21: m | E21: 1.6 | G21: =E21*F21 -> 0 | H21: 0.02478 | I21: =E21*H21 -> 0.039648 | J21: 0 | K21: =E21*J21 -> 0 | O21: 2 | AA21: 1 | AB21: 1 | AC21: 1 | AZ21: 1 | BA21: =IF(AZ21=1,G21,0) -> 0 | BB21: =IF(AZ21=2,G21,0) -> 0 | BC21: =IF(AZ21=3,G21,0) -> 0 | BD21: =IF(AZ21=4,G21,0) -> 0 | BE21: =IF(AZ21=5,G21,0) -> 0 | CA21: 1 | CB21: 1
C22: KP PVC DN150: | E22: 0 | M22: KP PVC DN150:
C23: Vedení NN:0,80*1 | E23: 0.8 | M23: Vedení NN:0,80*1
C24: Vedení VO:0,80*1 | E24: 0.8 | M24: Vedení VO:0,80*1
A25: 6 | B25: 121100002RAA | C25: Sejmutí ornice a uložení na deponii zpětný přesun, rozprostření v tl. 20 cm | D25: m3 | E25: 0.45 | G25: =E25*F25 -> 0 | H25: 0 | I25: =E25*H25 -> 0 | J25: 0 | K25: =E25*J25 -> 0 | O25: 2 | AA25: 1 | AB25: 1 | AC25: 1 | AZ25: 1 | BA25: =IF(AZ25=1,G25,0) -> 0 | BB25: =IF(AZ25=2,G25,0) -> 0 | BC25: =IF(AZ25=3,G25,0) -> 0 | BD25: =IF(AZ25=4,G25,0) -> 0 | BE25: =IF(AZ25=5,G25,0) -> 0 | CA25: 1 | CB25: 1
C26: KP PVC DN150:1,50*1,50*0,20 | E26: 0.45 | M26: KP PVC DN150:1,50*1,50*0,20
A27: 7 | B27: 130001101RRX | C27: Příplatek za ztížené hloubení v blízkosti vedení | D27: m3 | E27: 6.0965 | G27: =E27*F27 -> 0 | H27: 0 | I27: =E27*H27 -> 0 | J27: 0 | K27: =E27*J27 -> 0 | O27: 2 | AA27: 1 | AB27: 0 | AC27: 0 | AZ27: 1 | BA27: =IF(AZ27=1,G27,0) -> 0 | BB27: =IF(AZ27=2,G27,0) -> 0 | BC27: =IF(AZ27=3,G27,0) -> 0 | BD27: =IF(AZ27=4,G27,0) -> 0 | BE27: =IF(AZ27=5,G27,0) -> 0 | CA27: 1 | CB27: 0
C28: Včetně případných nutných dokopávek a ručního výkopu podél sousedících inženýrských sítí a provedení sond před samotnou realizací výkopů. | L28: Včetně případných nutných dokopávek a ručního výkopu podél sousedících inženýrských sítí a provedení sond před samotnou realizací výkopů. | O28: 3
C29: Začátek provozního součtu | E29: 0 | M29: Začátek provozního součtu
C30: KP PVC DN150:4,00*0,80*((1,75+1,35)/2-0,45) | E30: 3.52 | M30: KP PVC DN150:4,00*0,80*((1,75+1,35)/2-0,45)
C31: 1,50*0,80*((1,75+1,35)/2-0,20) | E31: 1.62 | M31: 1,50*0,80*((1,75+1,35)/2-0,20)
C32: Napojení na stávající stoku DN400:2,00*1,20*(1,80-0,45) | E32: 3.24 | M32: Napojení na stávající stoku DN400:2,00*1,20*(1,80-0,45)
C33: Odpočet objemu stávajícího potrubí DN400:-2,00*0,20^2*Pi | E33: -0.2513 | M33: Odpočet objemu stávajícího potrubí DN400:-2,00*0,20^2*Pi
C34: Konec provozního součtu | E34: 8.1287 | M34: Konec provozního součtu
C35: Příplatek z 75%:8,1287*0,75 | E35: 6.0965 | M35: Příplatek z 75%:8,1287*0,75
A36: 8 | B36: 132201210R00 | C36: Hloubení rýh š.do 200 cm hor.3 do 50 m3,STROJNĚ | D36: m3 | E36: 8.1287 | G36: =E36*F36 -> 0 | H36: 0 | I36: =E36*H36 -> 0 | J36: 0 | K36: =E36*J36 -> 0 | O36: 2 | AA36: 1 | AB36: 1 | AC36: 1 | AZ36: 1 | BA36: =IF(AZ36=1,G36,0) -> 0 | BB36: =IF(AZ36=2,G36,0) -> 0 | BC36: =IF(AZ36=3,G36,0) -> 0 | BD36: =IF(AZ36=4,G36,0) -> 0 | BE36: =IF(AZ36=5,G36,0) -> 0 | CA36: 1 | CB36: 1
C37: Položka obsahuje hloubení rýh traktorbagrem, naložení výkopku na dopravní prostředek pro svislé, nebo vodorovné přemístění, popř. přemístění výkopku do 3 m (po povrchu území), případné zajištění rypadel polštáři, udržování pracoviště a ochranu výkopiště proti stékání srážkové vody z okolního terénu i s jejím odvodněním, nebo odvedením, přesekání a odstranění kořenů ve výkopišti, odstranění napadávek, urovnání dna výkopu. | L37: Položka obsahuje hloubení rýh traktorbagrem, naložení výkopku na dopravní prostředek pro svislé, nebo vodorovné přemístění, popř. přemístění výkopku do 3 m (po povrchu území), případné zajištění rypadel polštáři, udržování pracoviště a ochranu výkopiště proti stékání srážkové vody z okolního terénu i s jejím odvodněním, nebo odvedením, přesekání a odstranění kořenů ve výkopišti, odstranění napadávek, urovnání dna výkopu. | O37: 3
C38: KP PVC DN150:4,00*0,80*((1,75+1,35)/2-0,45) | E38: 3.52 | M38: KP PVC DN150:4,00*0,80*((1,75+1,35)/2-0,45)
C39: 1,50*0,80*((1,75+1,35)/2-0,20) | E39: 1.62 | M39: 1,50*0,80*((1,75+1,35)/2-0,20)
C40: Napojení na stávající stoku DN400:2,00*1,20*(1,80-0,45) | E40: 3.24 | M40: Napojení na stávající stoku DN400:2,00*1,20*(1,80-0,45)
C41: Odpočet objemu stávajícího potrubí DN400:-2,00*0,20^2*Pi | E41: -0.2513 | M41: Odpočet objemu stávajícího potrubí DN400:-2,00*0,20^2*Pi
A42: 9 | B42: 132201219R00 | C42: Přípl.za lepivost,hloubení rýh 200cm,hor.3,STROJNĚ | D42: m3 | E42: 8.1287 | G42: =E42*F42 -> 0 | H42: 0 | I42: =E42*H42 -> 0 | J42: 0 | K42: =E42*J42 -> 0 | O42: 2 | AA42: 1 | AB42: 1 | AC42: 1 | AZ42: 1 | BA42: =IF(AZ42=1,G42,0) -> 0 | BB42: =IF(AZ42=2,G42,0) -> 0 | BC42: =IF(AZ42=3,G42,0) -> 0 | BD42: =IF(AZ42=4,G42,0) -> 0 | BE42: =IF(AZ42=5,G42,0) -> 0 | CA42: 1 | CB42: 1
C43: KP PVC DN150:4,00*0,80*((1,75+1,35)/2-0,45) | E43: 3.52 | M43: KP PVC DN150:4,00*0,80*((1,75+1,35)/2-0,45)
C44: 1,50*0,80*((1,75+1,35)/2-0,20) | E44: 1.62 | M44: 1,50*0,80*((1,75+1,35)/2-0,20)
C45: Napojení na stávající stoku DN400:2,00*1,20*(1,80-0,45) | E45: 3.24 | M45: Napojení na stávající stoku DN400:2,00*1,20*(1,80-0,45)
C46: Odpočet objemu stávajícího potrubí DN400:-2,00*0,20^2*Pi | E46: -0.2513 | M46: Odpočet objemu stávajícího potrubí DN400:-2,00*0,20^2*Pi
A47: 10 | B47: 151101101R00 | C47: Pažení a rozepření stěn rýh - příložné - hl.do 2 m | D47: m2 | E47: 11.85 | G47: =E47*F47 -> 0 | H47: 0.00099 | I47: =E47*H47 -> 0.0117315 | J47: 0 | K47: =E47*J47 -> 0 | O47: 2 | AA47: 1 | AB47: 1 | AC47: 1 | AZ47: 1 | BA47: =IF(AZ47=1,G47,0) -> 0 | BB47: =IF(AZ47=2,G47,0) -> 0 | BC47: =IF(AZ47=3,G47,0) -> 0 | BD47: =IF(AZ47=4,G47,0) -> 0 | BE47: =IF(AZ47=5,G47,0) -> 0 | CA47: 1 | CB47: 1
C48: KP PVC DN150:1,50*(1,75+1,35)/2*2 | E48: 4.65 | M48: KP PVC DN150:1,50*(1,75+1,35)/2*2
C49: Napojení na stávající stoku DN400:2,00*1,80*2 | E49: 7.2 | M49: Napojení na stávající stoku DN400:2,00*1,80*2
A50: 11 | B50: 151101111R00 | C50: Odstranění pažení stěn rýh - příložné - hl. do 2 m | D50: m2 | E50: 11.85 | G50: =E50*F50 -> 0 | H50: 0 | I50: =E50*H50 -> 0 | J50: 0 | K50: =E50*J50 -> 0 | O50: 2 | AA50: 1 | AB50: 1 | AC50: 1 | AZ50: 1 | BA50: =IF(AZ50=1,G50,0) -> 0 | BB50: =IF(AZ50=2,G50,0) -> 0 | BC50: =IF(AZ50=3,G50,0) -> 0 | BD50: =IF(AZ50=4,G50,0) -> 0 | BE50: =IF(AZ50=5,G50,0) -> 0 | CA50: 1 | CB50: 1
C51: KP PVC DN150:1,50*(1,75+1,35)/2*2 | E51: 4.65 | M51: KP PVC DN150:1,50*(1,75+1,35)/2*2
C52: Napojení na stávající stoku DN400:2,00*1,80*2 | E52: 7.2 | M52: Napojení na stávající stoku DN400:2,00*1,80*2
A53: 12 | B53: 162701105RSZ | C53: Vodorovné přemístění výkopku z hor.1-7 na skládku zhotovitele | D53: m3 | E53: 6.9183 | G53: =E53*F53 -> 0 | H53: 0 | I53: =E53*H53 -> 0 | J53: 0 | K53: =E53*J53 -> 0 | O53: 2 | AA53: 1 | AB53: 1 | AC53: 1 | AZ53: 1 | BA53: =IF(AZ53=1,G53,0) -> 0 | BB53: =IF(AZ53=2,G53,0) -> 0 | BC53: =IF(AZ53=3,G53,0) -> 0 | BD53: =IF(AZ53=4,G53,0) -> 0 | BE53: =IF(AZ53=5,G53,0) -> 0 | CA53: 1 | CB53: 1
C54: Výkopy: | E54: 0 | M54: Výkopy:
C55: KP PVC DN150:4,00*0,80*((1,75+1,35)/2-0,45) | E55: 3.52 | M55: KP PVC DN150:4,00*0,80*((1,75+1,35)/2-0,45)
C56: 1,50*0,80*((1,75+1,35)/2-0,20) | E56: 1.62 | M56: 1,50*0,80*((1,75+1,35)/2-0,20)
C57: Napojení na stávající stoku DN400:2,00*1,20*(1,80-0,45) | E57: 3.24 | M57: Napojení na stávající stoku DN400:2,00*1,20*(1,80-0,45)
C58: Odpočet objemu stávajícího potrubí DN400:-2,00*0,20^2*Pi | E58: -0.2513 | M58: Odpočet objemu stávajícího potrubí DN400:-2,00*0,20^2*Pi
C59: Odpočet zásypů zeminou:-1,2104 | E59: -1.2104 | M59: Odpočet zásypů zeminou:-1,2104
A60: 13 | B60: 174101101R00 | C60: Zásyp jam, rýh, šachet se zhutněním | D60: m3 | E60: 4.0104 | G60: =E60*F60 -> 0 | H60: 0 | I60: =E60*H60 -> 0 | J60: 0 | K60: =E60*J60 -> 0 | O60: 2 | AA60: 1 | AB60: 1 | AC60: 1 | AZ60: 1 | BA60: =IF(AZ60=1,G60,0) -> 0 | BB60: =IF(AZ60=2,G60,0) -> 0 | BC60: =IF(AZ60=3,G60,0) -> 0 | BD60: =IF(AZ60=4,G60,0) -> 0 | BE60: =IF(AZ60=5,G60,0) -> 0 | CA60: 1 | CB60: 1
C61: Položka obsahuje strojní přemístění materiálu pro zásyp ze vzdálenosti do 10 m od okraje zásypu. | L61: Položka obsahuje strojní přemístění materiálu pro zásyp ze vzdálenosti do 10 m od okraje zásypu. | O61: 3
O62: 3
C63: Zásyp zeminou:1,2104 | E63: 1.2104 | M63: Zásyp zeminou:1,2104
C64: Začátek provozního součtu | E64: 0 | M64: Začátek provozního součtu
C65: KP PVC DN150:1,50*0,80*((1,75+1,35)/2-0,20) | E65: 1.62 | M65: KP PVC DN150:1,50*0,80*((1,75+1,35)/2-0,20)
C66: Odpočet lože, potrubí a obsypů:-0,50*0,80*(0,15+0,15+0,30) | E66: -0.24 | M66: Odpočet lože, potrubí a obsypů:-0,50*0,80*(0,15+0,15+0,30)
C67: Odpočet objemu DRŠ:-0,20^2*Pi*((1,75+1,35)/2-0,20) | E67: -0.1696 | M67: Odpočet objemu DRŠ:-0,20^2*Pi*((1,75+1,35)/2-0,20)
C68: Konec provozního součtu | E68: 1.2104 | M68: Konec provozního součtu
C69: Zásyp ŠD fr. 0-63 mm v komunikaci:2,800 | E69: 2.8 | M69: Zásyp ŠD fr. 0-63 mm v komunikaci:2,800
C70: Začátek provozního součtu | E70: 0 | M70: Začátek provozního součtu
C71: KP PVC DN150:4,00*0,80*((1,75+1,35)/2-0,45) | E71: 3.52 | M71: KP PVC DN150:4,00*0,80*((1,75+1,35)/2-0,45)
C72: Napojení na stávající stoku DN400:2,00*1,20*(1,80-0,45) | E72: 3.24 | M72: Napojení na stávající stoku DN400:2,00*1,20*(1,80-0,45)
C73: Odpočet objemu lože, potrubí a obsypů:-4,00*0,80*(0,15+0,15+0,30) | E73: -1.92 | M73: Odpočet objemu lože, potrubí a obsypů:-4,00*0,80*(0,15+0,15+0,30)
C74: Napojení na stávající stoku DN400:-2,00*1,20*(0,15+0,40+0,30) | E74: -2.04 | M74: Napojení na stávající stoku DN400:-2,00*1,20*(0,15+0,40+0,30)
C75: Konec provozního součtu | E75: 2.8 | M75: Konec provozního součtu
A76: 14 | B76: 175101101R00 | C76: Obsyp potrubí bez prohození sypaniny | D76: m3 | E76: 3.1403 | G76: =E76*F76 -> 0 | H76: 0 | I76: =E76*H76 -> 0 | J76: 0 | K76: =E76*J76 -> 0 | O76: 2 | AA76: 1 | AB76: 1 | AC76: 1 | AZ76: 1 | BA76: =IF(AZ76=1,G76,0) -> 0 | BB76: =IF(AZ76=2,G76,0) -> 0 | BC76: =IF(AZ76=3,G76,0) -> 0 | BD76: =IF(AZ76=4,G76,0) -> 0 | BE76: =IF(AZ76=5,G76,0) -> 0 | CA76: 1 | CB76: 1
C77: KP PVC DN150:5,00*(0,80*(0,15+0,30)-0,075^2*Pi) | E77: 1.7116 | M77: KP PVC DN150:5,00*(0,80*(0,15+0,30)-0,075^2*Pi)
C78: Napojení na stávající stoku DN400:2,00*(1,20*(0,40+0,30)-0,20^2*Pi) | E78: 1.4287 | M78: Napojení na stávající stoku DN400:2,00*(1,20*(0,40+0,30)-0,20^2*Pi)
A79: 15 | B79: 199000002R00 | C79: Poplatek za skládku horniny 1- 7 č. dle katal. odpadů 17 05 04 | D79: m3 | E79: 6.9183 | G79: =E79*F79 -> 0 | H79: 0 | I79: =E79*H79 -> 0 | J79: 0 | K79: =E79*J79 -> 0 | O79: 2 | AA79: 1 | AB79: 1 | AC79: 1 | AZ79: 1 | BA79: =IF(AZ79=1,G79,0) -> 0 | BB79: =IF(AZ79=2,G79,0) -> 0 | BC79: =IF(AZ79=3,G79,0) -> 0 | BD79: =IF(AZ79=4,G79,0) -> 0 | BE79: =IF(AZ79=5,G79,0) -> 0 | CA79: 1 | CB79: 1
C80: Odpočet objemu stávajícího potrubí DN400:-2,00*0,20^2*Pi | E80: -0.2513 | M80: Odpočet objemu stávajícího potrubí DN400:-2,00*0,20^2*Pi
C81: Odpočet zásypů zeminou:-1,2104 | E81: -1.2104 | M81: Odpočet zásypů zeminou:-1,2104
C82: Výkopy: | E82: 0 | M82: Výkopy:
C83: KP PVC DN150:4,00*0,80*((1,75+1,35)/2-0,45) | E83: 3.52 | M83: KP PVC DN150:4,00*0,80*((1,75+1,35)/2-0,45)
C84: 1,50*0,80*((1,75+1,35)/2-0,20) | E84: 1.62 | M84: 1,50*0,80*((1,75+1,35)/2-0,20)
C85: Napojení na stávající stoku DN400:2,00*1,20*(1,80-0,45) | E85: 3.24 | M85: Napojení na stávající stoku DN400:2,00*1,20*(1,80-0,45)
A86: 16 | B86: 919735112R00 | C86: Řezání stávajícího živičného krytu tl. 5 - 10 cm | D86: m | E86: 13.6 | G86: =E86*F86 -> 0 | H86: 0 | I86: =E86*H86 -> 0 | J86: 0 | K86: =E86*J86 -> 0 | O86: 2 | AA86: 1 | AB86: 1 | AC86: 1 | AZ86: 1 | BA86: =IF(AZ86=1,G86,0) -> 0 | BB86: =IF(AZ86=2,G86,0) -> 0 | BC86: =IF(AZ86=3,G86,0) -> 0 | BD86: =IF(AZ86=4,G86,0) -> 0 | BE86: =IF(AZ86=5,G86,0) -> 0 | CA86: 1 | CB86: 1
C87: KP PVC DN150:4,00*2 | E87: 8 | M87: KP PVC DN150:4,00*2
C88: Napojení na stávající stoku DN400:(2,00+1,20)*2-0,80 | E88: 5.6 | M88: Napojení na stávající stoku DN400:(2,00+1,20)*2-0,80
A89: 17 | B89: 919735123R00 | C89: Řezání stávajícího betonového krytu tl. 10 - 15 cm | D89: m | E89: 13.6 | G89: =E89*F89 -> 0 | H89: 0 | I89: =E89*H89 -> 0 | J89: 0 | K89: =E89*J89 -> 0 | O89: 2 | AA89: 1 | AB89: 1 | AC89: 1 | AZ89: 1 | BA89: =IF(AZ89=1,G89,0) -> 0 | BB89: =IF(AZ89=2,G89,0) -> 0 | BC89: =IF(AZ89=3,G89,0) -> 0 | BD89: =IF(AZ89=4,G89,0) -> 0 | BE89: =IF(AZ89=5,G89,0) -> 0 | CA89: 1 | CB89: 1
C90: KP PVC DN150:4,00*2 | E90: 8 | M90: KP PVC DN150:4,00*2
C91: Napojení na stávající stoku DN400:(2,00+1,20)*2-0,80 | E91: 5.6 | M91: Napojení na stávající stoku DN400:(2,00+1,20)*2-0,80
A92: 18 | B92: 979082113RSZ | C92: Vodorovná doprava suti po suchu na skládku zhotovitele | D92: t | E92: 5.712 | G92: =E92*F92 -> 0 | H92: 0 | I92: =E92*H92 -> 0 | J92: 0 | K92: =E92*J92 -> 0 | O92: 2 | AA92: 1 | AB92: 1 | AC92: 1 | AZ92: 1 | BA92: =IF(AZ92=1,G92,0) -> 0 | BB92: =IF(AZ92=2,G92,0) -> 0 | BC92: =IF(AZ92=3,G92,0) -> 0 | BD92: =IF(AZ92=4,G92,0) -> 0 | BE92: =IF(AZ92=5,G92,0) -> 0 | CA92: 1 | CB92: 1
A93: 19 | B93: 979089001R00 | C93: Poplatek za skládku stavební suti štěrky z komunikací, skupina odpadu 010408 | D93: t | E93: 2.464 | G93: =E93*F93 -> 0 | H93: 0 | I93: =E93*H93 -> 0 | J93: 0 | K93: =E93*J93 -> 0 | O93: 2 | AA93: 1 | AB93: 1 | AC93: 1 | AZ93: 1 | BA93: =IF(AZ93=1,G93,0) -> 0 | BB93: =IF(AZ93=2,G93,0) -> 0 | BC93: =IF(AZ93=3,G93,0) -> 0 | BD93: =IF(AZ93=4,G93,0) -> 0 | BE93: =IF(AZ93=5,G93,0) -> 0 | CA93: 1 | CB93: 1
A94: 20 | B94: 979990103R00 | C94: Poplatek za skládku stavební suti beton skupina odpadu 170101 | D94: t | E94: 2.016 | G94: =E94*F94 -> 0 | H94: 0 | I94: =E94*H94 -> 0 | J94: 0 | K94: =E94*J94 -> 0 | O94: 2 | AA94: 1 | AB94: 1 | AC94: 1 | AZ94: 1 | BA94: =IF(AZ94=1,G94,0) -> 0 | BB94: =IF(AZ94=2,G94,0) -> 0 | BC94: =IF(AZ94=3,G94,0) -> 0 | BD94: =IF(AZ94=4,G94,0) -> 0 | BE94: =IF(AZ94=5,G94,0) -> 0 | CA94: 1 | CB94: 1
A95: 21 | B95: 979999995R00 | C95: Poplatek za reciklaci asfaltu, kusovost do 1600cm2 skupina 170302 | D95: t | E95: 1.232 | G95: =E95*F95 -> 0 | H95: 0 | I95: =E95*H95 -> 0 | J95: 0 | K95: =E95*J95 -> 0 | O95: 2 | AA95: 1 | AB95: 1 | AC95: 1 | AZ95: 1 | BA95: =IF(AZ95=1,G95,0) -> 0 | BB95: =IF(AZ95=2,G95,0) -> 0 | BC95: =IF(AZ95=3,G95,0) -> 0 | BD95: =IF(AZ95=4,G95,0) -> 0 | BE95: =IF(AZ95=5,G95,0) -> 0 | CA95: 1 | CB95: 1
C96: Položka je určena pro suť o velikosti kusu do 30x30 cm (technologický materiál určený k recyklaci). | L96: Položka je určena pro suť o velikosti kusu do 30x30 cm (technologický materiál určený k recyklaci). | O96: 3
A97: 22 | B97: 58337308R | C97: Štěrkopísek frakce 0-2 tř.B | D97: t | E97: 4.7439 | G97: =E97*F97 -> 0 | H97: 1 | I97: =E97*H97 -> 4.7439 | K97: =E97*J97 -> 0 | O97: 2 | AA97: 3 | AB97: 1 | AC97: 58337308R | AZ97: 1 | BA97: =IF(AZ97=1,G97,0) -> 0 | BB97: =IF(AZ97=2,G97,0) -> 0 | BC97: =IF(AZ97=3,G97,0) -> 0 | BD97: =IF(AZ97=4,G97,0) -> 0 | BE97: =IF(AZ97=5,G97,0) -> 0 | CA97: 3 | CB97: 1
C98: KP PVC DN150:5,00*(0,80*(0,15+0,30)-0,075^2*Pi)*1,0973*1,01 | E98: 1.897 | M98: KP PVC DN150:5,00*(0,80*(0,15+0,30)-0,075^2*Pi)*1,0973*1,01
C99: Napojení na stávající stoku DN400:2,00*(1,20*(0,40+0,30)-0,20^2*Pi)*1,973*1,01 | E99: 2.847 | M99: Napojení na stávající stoku DN400:2,00*(1,20*(0,40+0,30)-0,20^2*Pi)*1,973*1,01
A100: 23 | B100: 58344197R | C100: Štěrkodrtě frakce 0-63 A | D100: t | E100: 5.2968 | G100: =E100*F100 -> 0 | H100: 1 | I100: =E100*H100 -> 5.2968 | K100: =E100*J100 -> 0 | O100: 2 | AA100: 3 | AB100: 1 | AC100: 58344197R | AZ100: 1 | BA100: =IF(AZ100=1,G100,0) -> 0 | BB100: =IF(AZ100=2,G100,0) -> 0 | BC100: =IF(AZ100=3,G100,0) -> 0 | BD100: =IF(AZ100=4,G100,0) -> 0 | BE100: =IF(AZ100=5,G100,0) -> 0 | CA100: 3 | CB100: 1
C101: Zásyp ŠD fr. 0-63 mm v komunikaci:2,800*1,873*1,01 | E101: 5.2968 | M101: Zásyp ŠD fr. 0-63 mm v komunikaci:2,800*1,873*1,01
C102: Začátek provozního součtu | E102: 0 | M102: Začátek provozního součtu
C103: KP PVC DN150:4,00*0,80*((1,75+1,35)/2-0,45) | E103: 3.52 | M103: KP PVC DN150:4,00*0,80*((1,75+1,35)/2-0,45)
C104: Napojení na stávající stoku DN400:2,00*1,20*(1,80-0,45) | E104: 3.24 | M104: Napojení na stávající stoku DN400:2,00*1,20*(1,80-0,45)
C105: Odpočet objemu lože, potrubí a obsypů:-4,00*0,80*(0,15+0,15+0,30) | E105: -1.92 | M105: Odpočet objemu lože, potrubí a obsypů:-4,00*0,80*(0,15+0,15+0,30)
C106: Napojení na stávající stoku DN400:-2,00*1,20*(0,15+0,40+0,30) | E106: -2.04 | M106: Napojení na stávající stoku DN400:-2,00*1,20*(0,15+0,40+0,30)
C107: Konec provozního součtu | E107: 2.8 | M107: Konec provozního součtu
B108: Celkem za | C108: 1 Zemní práce | G108: =SUM(G7:G107) -> 0 | I108: =SUM(I7:I107) -> 10.1129355 | K108: =SUM(K7:K107) -> -5.712 | O108: 4 | BA108: =SUM(BA7:BA107) -> 0 | BB108: =SUM(BB7:BB107) -> 0 | BC108: =SUM(BC7:BC107) -> 0 | BD108: =SUM(BD7:BD107) -> 0 | BE108: =SUM(BE7:BE107) -> 0
A109: Díl: | B109: 45 | C109: Podkladní a vedlejší konstrukce | O109: 1
A110: 24 | B110: 451572111R00 | C110: Lože pod potrubí z kameniva těženého 0 - 4 mm | D110: m3 | E110: 0.96 | G110: =E110*F110 -> 0 | H110: 1.873 | I110: =E110*H110 -> 1.79808 | J110: 0 | K110: =E110*J110 -> 0 | O110: 2 | AA110: 1 | AB110: 1 | AC110: 1 | AZ110: 1 | BA110: =IF(AZ110=1,G110,0) -> 0 | BB110: =IF(AZ110=2,G110,0) -> 0 | BC110: =IF(AZ110=3,G110,0) -> 0 | BD110: =IF(AZ110=4,G110,0) -> 0 | BE110: =IF(AZ110=5,G110,0) -> 0 | CA110: 1 | CB110: 1
C111: KP PVC DN150:5,00*0,80*0,15 | E111: 0.6 | M111: KP PVC DN150:5,00*0,80*0,15
C112: Napojení na stávající stoku DN400:2,00*1,20*0,15 | E112: 0.36 | M112: Napojení na stávající stoku DN400:2,00*1,20*0,15
B113: Celkem za | C113: 45 Podkladní a vedlejší konstrukce | G113: =SUM(G109:G112) -> 0 | I113: =SUM(I109:I112) -> 1.79808 | K113: =SUM(K109:K112) -> 0 | O113: 4 | BA113: =SUM(BA109:BA112) -> 0 | BB113: =SUM(BB109:BB112) -> 0 | BC113: =SUM(BC109:BC112) -> 0 | BD113: =SUM(BD109:BD112) -> 0 | BE113: =SUM(BE109:BE112) -> 0
A114: Díl: | B114: 5 | C114: Komunikace | O114: 1
A115: 25 | B115: 566903111R00 | C115: Vyspravení podkladu po překopech kam.hrubě drceným | D115: t | E115: 2.0978 | G115: =E115*F115 -> 0 | H115: 1.1 | I115: =E115*H115 -> 2.30758 | J115: 0 | K115: =E115*J115 -> 0 | O115: 2 | AA115: 1 | AB115: 1 | AC115: 1 | AZ115: 1 | BA115: =IF(AZ115=1,G115,0) -> 0 | BB115: =IF(AZ115=2,G115,0) -> 0 | BC115: =IF(AZ115=3,G115,0) -> 0 | BD115: =IF(AZ115=4,G115,0) -> 0 | BE115: =IF(AZ115=5,G115,0) -> 0 | CA115: 1 | CB115: 1
C116: KP PVC DN150:4,00*0,80*0,20*1,873 | E116: 1.1987 | M116: KP PVC DN150:4,00*0,80*0,20*1,873
C117: Napojení na stávající stoku DN400:2,00*1,20*0,20*1,873 | E117: 0.899 | M117: Napojení na stávající stoku DN400:2,00*1,20*0,20*1,873
A118: 26 | B118: 566904111R00 | C118: Vyspravení podkladu po překopech kam.obal.asfaltem | D118: t | E118: 1.4 | G118: =E118*F118 -> 0 | H118: 1 | I118: =E118*H118 -> 1.4 | J118: 0 | K118: =E118*J118 -> 0 | O118: 2 | AA118: 1 | AB118: 1 | AC118: 1 | AZ118: 1 | BA118: =IF(AZ118=1,G118,0) -> 0 | BB118: =IF(AZ118=2,G118,0) -> 0 | BC118: =IF(AZ118=3,G118,0) -> 0 | BD118: =IF(AZ118=4,G118,0) -> 0 | BE118: =IF(AZ118=5,G118,0) -> 0 | CA118: 1 | CB118: 1
C119: KP PVC DN150:4,00*0,80*0,10*2,5 | E119: 0.8 | M119: KP PVC DN150:4,00*0,80*0,10*2,5
C120: Napojení na stávající stoku DN400:2,00*1,20*0,10*2,5 | E120: 0.6 | M120: Napojení na stávající stoku DN400:2,00*1,20*0,10*2,5
A121: 27 | B121: 566905111R00 | C121: Vyspravení podkladu po překopech podklad.betonem | D121: m3 | E121: 0.84 | G121: =E121*F121 -> 0 | H121: 2.5 | I121: =E121*H121 -> 2.1 | J121: 0 | K121: =E121*J121 -> 0 | O121: 2 | AA121: 1 | AB121: 1 | AC121: 1 | AZ121: 1 | BA121: =IF(AZ121=1,G121,0) -> 0 | BB121: =IF(AZ121=2,G121,0) -> 0 | BC121: =IF(AZ121=3,G121,0) -> 0 | BD121: =IF(AZ121=4,G121,0) -> 0 | BE121: =IF(AZ121=5,G121,0) -> 0 | CA121: 1 | CB121: 1
C122: KP PVC DN150:4,00*0,80*0,15 | E122: 0.48 | M122: KP PVC DN150:4,00*0,80*0,15
C123: Napojení na stávající stoku DN400:2,00*1,20*0,15 | E123: 0.36 | M123: Napojení na stávající stoku DN400:2,00*1,20*0,15
A124: 28 | B124: 573111121R00 | C124: Postřik infiltr., množství zbytkov. poj. 0,60kg/m2 | D124: m2 | E124: 5.6 | G124: =E124*F124 -> 0 | H124: 0.00561 | I124: =E124*H124 -> 0.031416 | J124: 0 | K124: =E124*J124 -> 0 | O124: 2 | AA124: 1 | AB124: 1 | AC124: 1 | AZ124: 1 | BA124: =IF(AZ124=1,G124,0) -> 0 | BB124: =IF(AZ124=2,G124,0) -> 0 | BC124: =IF(AZ124=3,G124,0) -> 0 | BD124: =IF(AZ124=4,G124,0) -> 0 | BE124: =IF(AZ124=5,G124,0) -> 0 | CA124: 1 | CB124: 1
C125: KP PVC DN150:4,00*0,80 | E125: 3.2 | M125: KP PVC DN150:4,00*0,80
C126: Napojení na stávající stoku DN400:2,00*1,20 | E126: 2.4 | M126: Napojení na stávající stoku DN400:2,00*1,20
B127: Celkem za | C127: 5 Komunikace | G127: =SUM(G114:G126) -> 0 | I127: =SUM(I114:I126) -> 5.838996 | K127: =SUM(K114:K126) -> 0 | O127: 4 | BA127: =SUM(BA114:BA126) -> 0 | BB127: =SUM(BB114:BB126) -> 0 | BC127: =SUM(BC114:BC126) -> 0 | BD127: =SUM(BD114:BD126) -> 0 | BE127: =SUM(BE114:BE126) -> 0
A128: Díl: | B128: 8 | C128: Trubní vedení | O128: 1
A129: 29 | B129: 871313121R00 | C129: Montáž trub z plastu, gumový kroužek, DN 150 | D129: m | E129: 5 | G129: =E129*F129 -> 0 | H129: 0 | I129: =E129*H129 -> 0 | J129: 0 | K129: =E129*J129 -> 0 | O129: 2 | AA129: 1 | AB129: 0 | AC129: 0 | AZ129: 1 | BA129: =IF(AZ129=1,G129,0) -> 0 | BB129: =IF(AZ129=2,G129,0) -> 0 | BC129: =IF(AZ129=3,G129,0) -> 0 | BD129: =IF(AZ129=4,G129,0) -> 0 | BE129: =IF(AZ129=5,G129,0) -> 0 | CA129: 1 | CB129: 0
C130: V položce je uvažováno s jedním spojem na 6 m potrubí. Položka je určena pro montáž potrubí z kanalizačních trub z plastu těsněných gumovým kroužkem v otevřeném výkopu ve sklonu do 20 %. | L130: V položce je uvažováno s jedním spojem na 6 m potrubí. Položka je určena pro montáž potrubí z kanalizačních trub z plastu těsněných gumovým kroužkem v otevřeném výkopu ve sklonu do 20 %. | O130: 3
C131: KP PVC DN150:5,00 | E131: 5 | M131: KP PVC DN150:5,00
A132: 30 | B132: 877365121RX1 | C132: Výřez a montáž tvarovky z plastu na potrubí DN400 vč. dodávky přesuvek DN400 a odbočky DN400/150 | D132: kus | E132: 1 | G132: =E132*F132 -> 0 | H132: 0.01435 | I132: =E132*H132 -> 0.01435 | J132: 0 | K132: =E132*J132 -> 0 | O132: 2 | AA132: 1 | AB132: 1 | AC132: 1 | AZ132: 1 | BA132: =IF(AZ132=1,G132,0) -> 0 | BB132: =IF(AZ132=2,G132,0) -> 0 | BC132: =IF(AZ132=3,G132,0) -> 0 | BD132: =IF(AZ132=4,G132,0) -> 0 | BE132: =IF(AZ132=5,G132,0) -> 0 | CA132: 1 | CB132: 1
C133: Součástí položky je i podbetonování prostoru napojení přípojky dle PD. | L133: Součástí položky je i podbetonování prostoru napojení přípojky dle PD. | O133: 3
C134: Stávající potrubí stoka je ULTRA-RIB 2 DN400 | L134: Stávající potrubí stoka je ULTRA-RIB 2 DN400 | O134: 3
C135: KP PVC DN150: | E135: 0 | M135: KP PVC DN150:
C136: Napojení KP na stávající stoku DN400:1 | E136: 1 | M136: Napojení KP na stávající stoku DN400:1
A137: 31 | B137: 892601121R00 | C137: Čištění kanalizační stoky do DN 200, do 15 m | D137: úsek | E137: 1 | G137: =E137*F137 -> 0 | H137: 0 | I137: =E137*H137 -> 0 | J137: 0 | K137: =E137*J137 -> 0 | O137: 2 | AA137: 1 | AB137: 1 | AC137: 1 | AZ137: 1 | BA137: =IF(AZ137=1,G137,0) -> 0 | BB137: =IF(AZ137=2,G137,0) -> 0 | BC137: =IF(AZ137=3,G137,0) -> 0 | BD137: =IF(AZ137=4,G137,0) -> 0 | BE137: =IF(AZ137=5,G137,0) -> 0 | CA137: 1 | CB137: 1
C138: V položce je zakalkulováno: | L138: V položce je zakalkulováno: | O138: 3
C139: a) otevření a uzavření revizních šachet a čisticích kusů | L139: a) otevření a uzavření revizních šachet a čisticích kusů | O139: 3
C140: b) natažení vysokotlakých hadic k místu odkud se bude kanalizace čistit | L140: b) natažení vysokotlakých hadic k místu odkud se bude kanalizace čistit | O140: 3
C141: c) vyčištění potrubí tlakovou vodou nebo motorovým pérem. | L141: c) vyčištění potrubí tlakovou vodou nebo motorovým pérem. | O141: 3
A142: 32 | B142: 892855111R00 | C142: Kontrola kanalizace TV kamerou do 15 m | D142: úsek | E142: 1 | G142: =E142*F142 -> 0 | H142: 0 | I142: =E142*H142 -> 0 | J142: 0 | K142: =E142*J142 -> 0 | O142: 2 | AA142: 1 | AB142: 1 | AC142: 1 | AZ142: 1 | BA142: =IF(AZ142=1,G142,0) -> 0 | BB142: =IF(AZ142=2,G142,0) -> 0 | BC142: =IF(AZ142=3,G142,0) -> 0 | BD142: =IF(AZ142=4,G142,0) -> 0 | BE142: =IF(AZ142=5,G142,0) -> 0 | CA142: 1 | CB142: 1
C143: Provedení kaberové prohlídky včetně dodání elektronického záznamu na CD zadavateli a tištěné dokumentace průběhu kamerové prohlídky | L143: Provedení kaberové prohlídky včetně dodání elektronického záznamu na CD zadavateli a tištěné dokumentace průběhu kamerové prohlídky | O143: 3
A144: 33 | B144: 894431312RAC | C144: Šachta, D 425 mm, dl.šach.roury 1,50 m, 1 přítok dno KG D 160 mm, poklop děrovaný litina 40 t | D144: kus | E144: 1 | G144: =E144*F144 -> 0 | H144: 0.05553 | I144: =E144*H144 -> 0.05553 | J144: 0 | K144: =E144*J144 -> 0 | O144: 2 | AA144: 1 | AB144: 1 | AC144: 1 | AZ144: 1 | BA144: =IF(AZ144=1,G144,0) -> 0 | BB144: =IF(AZ144=2,G144,0) -> 0 | BC144: =IF(AZ144=3,G144,0) -> 0 | BD144: =IF(AZ144=4,G144,0) -> 0 | BE144: =IF(AZ144=5,G144,0) -> 0 | CA144: 1 | CB144: 1
C145: Plastové dno, šachta z korugované trouby, těsnění, šachtová roura teleskopická, rám do teleskopické trouby, poklop litinový děrovaný. | L145: Plastové dno, šachta z korugované trouby, těsnění, šachtová roura teleskopická, rám do teleskopické trouby, poklop litinový děrovaný. | O145: 3
A146: 34 | B146: 286111903.R | C146: Trubka kanalizační PVC QUANTUM SN min. 12 DN 150 | D146: m | E146: 5.15 | G146: =E146*F146 -> 0 | H146: 0.0082 | I146: =E146*H146 -> 0.04223 | K146: =E146*J146 -> 0 | O146: 2 | AA146: 3 | AB146: 1 | AC146: 286111903.R | AZ146: 1 | BA146: =IF(AZ146=1,G146,0) -> 0 | BB146: =IF(AZ146=2,G146,0) -> 0 | BC146: =IF(AZ146=3,G146,0) -> 0 | BD146: =IF(AZ146=4,G146,0) -> 0 | BE146: =IF(AZ146=5,G146,0) -> 0 | CA146: 3 | CB146: 1
C147: Jedná se o plnostěnné kanalizační trubky DN 150 – DN 400, SN 12 kN/m2 , zvenčí i zevnitř hladké. Jsou opatřeny hrdlem, v němž je vložen vysoce elastický jazýčkový kroužek. konce trubek (dříků) jsou opatřeny zkosením pod úhlem 15°. Způsob použití trubek je „U“ dle normy ČSN EN 1401-1, tj. mimo budovy. Spolehlivá funkce těsnění je jištěna výztužným kroužkem z elastomeru. Je tak zamezeno vypad-nutí nebo vytlačení kroužku při manipulaci a montáži. Tento systém zaručuje při správné montáži | L147: Jedná se o plnostěnné kanalizační trubky DN 150 – DN 400, SN 12 kN/m2 , zvenčí i zevnitř hladké. Jsou opatřeny hrdlem, v němž je vložen vysoce elastický jazýčkový kroužek. konce trubek (dříků) jsou opatřeny zkosením pod úhlem 15°. Způsob použití trubek je „U“ dle normy ČSN EN 1401-1, tj. mimo budovy. Spolehlivá funkce těsnění je jištěna výztužným kroužkem z elastomeru. Je tak zamezeno vypad-nutí nebo vytlačení kroužku při manipulaci a montáži. Tento systém zaručuje při správné montáži | O147: 3
C148: dokonalou těsnost do výšky vodního sloupce 5 metrů. | L148: dokonalou těsnost do výšky vodního sloupce 5 metrů. | O148: 3
C149: Teplota při pokládce: min. -10 °C, max. 50 °C | L149: Teplota při pokládce: min. -10 °C, max. 50 °C | O149: 3
C150: Max. teplota média: trvale do 40 °C, krátkodobě do 60 °C | L150: Max. teplota média: trvale do 40 °C, krátkodobě do 60 °C | O150: 3
C151: Orientační výška krytí: min. 0,5 m, max. 10 m | L151: Orientační výška krytí: min. 0,5 m, max. 10 m | O151: 3
C152: Max. rychlost média: 12 m/s | L152: Max. rychlost média: 12 m/s | O152: 3
C153: KP PVC DN150:5,00*1,03 | E153: 5.15 | M153: KP PVC DN150:5,00*1,03
B154: Celkem za | C154: 8 Trubní vedení | G154: =SUM(G128:G153) -> 0 | I154: =SUM(I128:I153) -> 0.11211 | K154: =SUM(K128:K153) -> 0 | O154: 4 | BA154: =SUM(BA128:BA153) -> 0 | BB154: =SUM(BB128:BB153) -> 0 | BC154: =SUM(BC128:BC153) -> 0 | BD154: =SUM(BD128:BD153) -> 0 | BE154: =SUM(BE128:BE153) -> 0
A155: Díl: | B155: 99 | C155: Staveništní přesun hmot | O155: 1
A156: 35 | B156: 998276101R00 | C156: Přesun hmot, trubní vedení plastová, otevř. výkop | D156: t | E156: 17.8621215 | G156: =E156*F156 -> 0 | H156: 0 | I156: =E156*H156 -> 0 | K156: =E156*J156 -> 0 | O156: 2 | AA156: 7 | AB156: 1 | AC156: 2 | AZ156: 1 | BA156: =IF(AZ156=1,G156,0) -> 0 | BB156: =IF(AZ156=2,G156,0) -> 0 | BC156: =IF(AZ156=3,G156,0) -> 0 | BD156: =IF(AZ156=4,G156,0) -> 0 | BE156: =IF(AZ156=5,G156,0) -> 0 | CA156: 7 | CB156: 1
B157: Celkem za | C157: 99 Staveništní přesun hmot | G157: =SUM(G155:G156) -> 0 | I157: =SUM(I155:I156) -> 0 | K157: =SUM(K155:K156) -> 0 | O157: 4 | BA157: =SUM(BA155:BA156) -> 0 | BB157: =SUM(BB155:BB156) -> 0 | BC157: =SUM(BC155:BC156) -> 0 | BD157: =SUM(BD155:BD156) -> 0 | BE157: =SUM(BE155:BE156) -> 0

Sheet 330 3357330 KL
A1: POLOŽKOVÝ ROZPOČET
A2: Rozpočet | C2: 3357/330 | D2: STL plynová přípojka | F2: JKSO | G2: 827.59
A4: Objekt | F4: SKP
A5: 330 | C5: STL plynová přípojka | F5: Měrná jednotka | G5: m
A6: Stavba | F6: Počet jednotek | G6: 4
A7: 3357 | C7: Přípojky pro p.p.č. 1005/8 v k.ú. Turnov | F7: Náklady na m.j. | G7: =IF(G6=0,,ROUND((F30+F32)/G6,1)) -> 0
A8: Projektant | C8: JENA-CZ s.r.o. | F8: Typ rozpočtu
A9: Zpracovatel projektu
A10: Objednatel | C10: Město TURNOV
A11: Dodavatel | C11: . | F11: Zakázkové číslo
A12: Rozpočtoval | F12: Počet listů
A13: ROZPOČTOVÉ NÁKLADY
A14: Základní rozpočtové náklady | D14: Ostatní rozpočtové náklady
B15: HSV celkem | C15: ='330 3357330 Rek'!E12 -> 0 | D15: ='330 3357330 Rek'!A17 -> Zařízení staveniště | G15: ='330 3357330 Rek'!I17 -> 0
A16: Z | B16: PSV celkem | C16: ='330 3357330 Rek'!F12 -> 0 | D16: ='330 3357330 Rek'!A18 -> Kompletační činnost (IČD) | G16: ='330 3357330 Rek'!I18 -> 0
A17: R | B17: M práce celkem | C17: ='330 3357330 Rek'!H12 -> 0 | D17: ='330 3357330 Rek'!A19 -> Vytýčení stavby a podz. inženýrských sítí | G17: ='330 3357330 Rek'!I19 -> 0
A18: N | B18: M dodávky celkem | C18: ='330 3357330 Rek'!G12 -> 0 | D18: ='330 3357330 Rek'!A20 -> Dokumentace skutečného provedení | G18: ='330 3357330 Rek'!I20 -> 0
A19: ZRN celkem | C19: =SUM(C15:C18) -> 0 | D19: ='330 3357330 Rek'!A21 -> Geodetické zaměření stavby | G19: ='330 3357330 Rek'!I21 -> 0
D20: ='330 3357330 Rek'!A22 -> DIO | G20: ='330 3357330 Rek'!I22 -> 0
A21: HZS | C21: ='330 3357330 Rek'!I12 -> 0
A22: ZRN+HZS | C22: =C19+C21 -> 0
A23: ZRN+ost.náklady+HZS | C23: =C22+G23 -> 0 | D23: Ostatní náklady celkem | G23: ='330 3357330 Rek'!H23 -> 0
A24: Vypracoval | D24: Za zhotovitele | F24: Za objednatele
A25: Jméno : | D25: Jméno : | F25: Jméno :
A26: Datum : | D26: Datum : | F26: Datum :
A28: Podpis : | D28: Podpis: | F28: Podpis:
A30: Základ pro DPH | C30: 21 | D30: % | F30: =C23-F32 -> 0
A31: DPH | C31: =C30 -> 21 | D31: % | F31: =ROUND(PRODUCT(F30,C31/100),0) -> 0
A32: Základ pro DPH | C32: 0 | D32: % | F32: 0
A33: DPH | C33: =C32 -> 0 | D33: % | F33: =ROUND(PRODUCT(F32,C33/100),0) -> 0
A34: CENA ZA OBJEKT CELKEM | F34: =ROUND(SUM(F30:F33),0) -> 0
A36: Poznámka :

Sheet 330 3357330 Rek
A1: Stavba : | C1: 3357 Přípojky pro p.p.č. 1005/8 v k.ú. Turnov | G1: Rozpočet : | H1: 3357/330
A2: Objekt : | C2: 330 STL plynová přípojka | G2: STL plynová přípojka
A4: REKAPITULACE STAVEBNÍCH DÍLŮ
B6: Stavební díl | E6: HSV | F6: PSV | G6: Dodávka | H6: Montáž | I6: HZS
A7: ='330 3357330 Pol'!B7 -> 1 | B7: ='330 3357330 Pol'!C7 -> Zemní práce | E7: ='330 3357330 Pol'!BA27 -> 0 | F7: ='330 3357330 Pol'!BB27 -> 0 | G7: ='330 3357330 Pol'!BC27 -> 0 | H7: ='330 3357330 Pol'!BD27 -> 0 | I7: ='330 3357330 Pol'!BE27 -> 0
A8: ='330 3357330 Pol'!B28 -> 3 | B8: ='330 3357330 Pol'!C28 -> Svislé a kompletní konstrukce | E8: ='330 3357330 Pol'!BA31 -> 0 | F8: ='330 3357330 Pol'!BB31 -> 0 | G8: ='330 3357330 Pol'!BC31 -> 0 | H8: ='330 3357330 Pol'!BD31 -> 0 | I8: ='330 3357330 Pol'!BE31 -> 0
A9: ='330 3357330 Pol'!B32 -> 5 | B9: ='330 3357330 Pol'!C32 -> Komunikace | E9: ='330 3357330 Pol'!BA41 -> 0 | F9: ='330 3357330 Pol'!BB41 -> 0 | G9: ='330 3357330 Pol'!BC41 -> 0 | H9: ='330 3357330 Pol'!BD41 -> 0 | I9: ='330 3357330 Pol'!BE41 -> 0
A10: ='330 3357330 Pol'!B42 -> 8 | B10: ='330 3357330 Pol'!C42 -> Trubní vedení | E10: ='330 3357330 Pol'!BA46 -> 0 | F10: ='330 3357330 Pol'!BB46 -> 0 | G10: ='330 3357330 Pol'!BC46 -> 0 | H10: ='330 3357330 Pol'!BD46 -> 0 | I10: ='330 3357330 Pol'!BE46 -> 0
A11: ='330 3357330 Pol'!B47 -> 99 | B11: ='330 3357330 Pol'!C47 -> Staveništní přesun hmot | E11: ='330 3357330 Pol'!BA49 -> 0 | F11: ='330 3357330 Pol'!BB49 -> 0 | G11: ='330 3357330 Pol'!BC49 -> 0 | H11: ='330 3357330 Pol'!BD49 -> 0 | I11: ='330 3357330 Pol'!BE49 -> 0
B12: CELKEM OBJEKT | E12: =SUM(E7:E11) -> 0 | F12: =SUM(F7:F11) -> 0 | G12: =SUM(G7:G11) -> 0 | H12: =SUM(H7:H11) -> 0 | I12: =SUM(I7:I11) -> 0
A14: VEDLEJŠÍ ROZPOČTOVÉ NÁKLADY
A16: Název VRN | E16: Kč | I16: Kč
A17: Zařízení staveniště | E17: 0 | I17: =E17+F17*G17/100 -> 0 | BA17: 2
A18: Kompletační činnost (IČD) | E18: 0 | I18: 0 | BA18: 2
A19: Vytýčení stavby a podz. inženýrských sítí | E19: 0 | I19: 0 | BA19: 0
A20: Dokumentace skutečného provedení | E20: 0 | I20: 0 | BA20: 0
A21: Geodetické zaměření stavby | E21: 0 | I21: 0 | BA21: 0
A22: DIO | E22: 0 | I22: 0 | BA22: 0
B23: CELKEM VRN | H23: =SUM(I17:I22) -> 0

Sheet 330 3357330 Pol
A1: Položkový rozpočet
A3: Stavba : | C3: 3357 Přípojky pro p.p.č. 1005/8 v k.ú. Turnov | E3: Rozpočet: | F3: ='330 3357330 Rek'!H1 -> 3357/330
A4: Objekt : | C4: 330 STL plynová přípojka | E4: ='330 3357330 Rek'!G2 -> STL plynová přípojka
A6: P.č. | B6: Číslo položky | C6: Název položky | D6: MJ | E6: množství | F6: cena / MJ | G6: celkem (Kč) | H6: Jednotková hmotnost | I6: Celková hmotnost | J6: Jednotková dem.hmot. | K6: Celková dem.hmot.
A7: Díl: | B7: 1 | C7: Zemní práce | O7: 1
A8: 1 | B8: 113107520R00 | C8: Odstranění podkladu pl. 50 m2,kam.drcené tl.20 cm | D8: m2 | E8: 1.8 | G8: =E8*F8 -> 0 | H8: 0 | I8: =E8*H8 -> 0 | J8: -0.44 | K8: =E8*J8 -> -0.792 | O8: 2 | AA8: 1 | AB8: 1 | AC8: 1 | AZ8: 1 | BA8: =IF(AZ8=1,G8,0) -> 0 | BB8: =IF(AZ8=2,G8,0) -> 0 | BC8: =IF(AZ8=3,G8,0) -> 0 | BD8: =IF(AZ8=4,G8,0) -> 0 | BE8: =IF(AZ8=5,G8,0) -> 0 | CA8: 1 | CB8: 1
C9: Přípojka STL plyn:3,00*0,60 | E9: 1.8 | M9: Přípojka STL plyn:3,00*0,60
A10: 2 | B10: 113108310R00 | C10: Odstranění asfaltové vrstvy pl. do 50 m2, tl.10 cm | D10: m2 | E10: 1.8 | G10: =E10*F10 -> 0 | H10: 0 | I10: =E10*H10 -> 0 | J10: -0.22 | K10: =E10*J10 -> -0.396 | O10: 2 | AA10: 1 | AB10: 1 | AC10: 1 | AZ10: 1 | BA10: =IF(AZ10=1,G10,0) -> 0 | BB10: =IF(AZ10=2,G10,0) -> 0 | BC10: =IF(AZ10=3,G10,0) -> 0 | BD10: =IF(AZ10=4,G10,0) -> 0 | BE10: =IF(AZ10=5,G10,0) -> 0 | CA10: 1 | CB10: 1
C11: Přípojka STL plyn:3,00*0,60 | E11: 1.8 | M11: Přípojka STL plyn:3,00*0,60
A12: 3 | B12: 113109315R00 | C12: Odstranění podkladu pl.50 m2, bet.prostý tl.15 cm | D12: m2 | E12: 1.8 | G12: =E12*F12 -> 0 | H12: 0 | I12: =E12*H12 -> 0 | J12: -0.36 | K12: =E12*J12 -> -0.648 | O12: 2 | AA12: 1 | AB12: 1 | AC12: 1 | AZ12: 1 | BA12: =IF(AZ12=1,G12,0) -> 0 | BB12: =IF(AZ12=2,G12,0) -> 0 | BC12: =IF(AZ12=3,G12,0) -> 0 | BD12: =IF(AZ12=4,G12,0) -> 0 | BE12: =IF(AZ12=5,G12,0) -> 0 | CA12: 1 | CB12: 1
C13: Přípojka STL plyn:3,00*0,60 | E13: 1.8 | M13: Přípojka STL plyn:3,00*0,60
A14: 4 | B14: 119001421R00 | C14: Dočasné zajištění kabelů - do počtu 3 kabelů | D14: m | E14: 1.6 | G14: =E14*F14 -> 0 | H14: 0.02478 | I14: =E14*H14 -> 0.039648 | J14: 0 | K14: =E14*J14 -> 0 | O14: 2 | AA14: 1 | AB14: 1 | AC14: 1 | AZ14: 1 | BA14: =IF(AZ14=1,G14,0) -> 0 | BB14: =IF(AZ14=2,G14,0) -> 0 | BC14: =IF(AZ14=3,G14,0) -> 0 | BD14: =IF(AZ14=4,G14,0) -> 0 | BE14: =IF(AZ14=5,G14,0) -> 0 | CA14: 1 | CB14: 1
C15: Přípojka STL plyn: | E15: 0 | M15: Přípojka STL plyn:
C16: Vedení NN:0,80*1 | E16: 0.8 | M16: Vedení NN:0,80*1
C17: Vedení VO:0,80*1 | E17: 0.8 | M17: Vedení VO:0,80*1
A18: 5 | B18: 919735112R00 | C18: Řezání stávajícího živičného krytu tl. 5 - 10 cm | D18: m | E18: 6.6 | G18: =E18*F18 -> 0 | H18: 0 | I18: =E18*H18 -> 0 | J18: 0 | K18: =E18*J18 -> 0 | O18: 2 | AA18: 1 | AB18: 1 | AC18: 1 | AZ18: 1 | BA18: =IF(AZ18=1,G18,0) -> 0 | BB18: =IF(AZ18=2,G18,0) -> 0 | BC18: =IF(AZ18=3,G18,0) -> 0 | BD18: =IF(AZ18=4,G18,0) -> 0 | BE18: =IF(AZ18=5,G18,0) -> 0 | CA18: 1 | CB18: 1
C19: Přípojka STL plyn:3,00*2+0,60 | E19: 6.6 | M19: Přípojka STL plyn:3,00*2+0,60
A20: 6 | B20: 919735123R00 | C20: Řezání stávajícího betonového krytu tl. 10 - 15 cm | D20: m | E20: 6.6 | G20: =E20*F20 -> 0 | H20: 0 | I20: =E20*H20 -> 0 | J20: 0 | K20: =E20*J20 -> 0 | O20: 2 | AA20: 1 | AB20: 1 | AC20: 1 | AZ20: 1 | BA20: =IF(AZ20=1,G20,0) -> 0 | BB20: =IF(AZ20=2,G20,0) -> 0 | BC20: =IF(AZ20=3,G20,0) -> 0 | BD20: =IF(AZ20=4,G20,0) -> 0 | BE20: =IF(AZ20=5,G20,0) -> 0 | CA20: 1 | CB20: 1
C21: Přípojka STL plyn:3,00*2+0,60 | E21: 6.6 | M21: Přípojka STL plyn:3,00*2+0,60
A22: 7 | B22: 979082113RSZ | C22: Vodorovná doprava suti po suchu na skládku zhotovitele | D22: t | E22: 1.836 | G22: =E22*F22 -> 0 | H22: 0 | I22: =E22*H22 -> 0 | J22: 0 | K22: =E22*J22 -> 0 | O22: 2 | AA22: 1 | AB22: 1 | AC22: 1 | AZ22: 1 | BA22: =IF(AZ22=1,G22,0) -> 0 | BB22: =IF(AZ22=2,G22,0) -> 0 | BC22: =IF(AZ22=3,G22,0) -> 0 | BD22: =IF(AZ22=4,G22,0) -> 0 | BE22: =IF(AZ22=5,G22,0) -> 0 | CA22: 1 | CB22: 1
A23: 8 | B23: 979089001R00 | C23: Poplatek za skládku stavební suti štěrky z komunikací, skupina odpadu 010408 | D23: t | E23: 0.792 | G23: =E23*F23 -> 0 | H23: 0 | I23: =E23*H23 -> 0 | J23: 0 | K23: =E23*J23 -> 0 | O23: 2 | AA23: 1 | AB23: 1 | AC23: 1 | AZ23: 1 | BA23: =IF(AZ23=1,G23,0) -> 0 | BB23: =IF(AZ23=2,G23,0) -> 0 | BC23: =IF(AZ23=3,G23,0) -> 0 | BD23: =IF(AZ23=4,G23,0) -> 0 | BE23: =IF(AZ23=5,G23,0) -> 0 | CA23: 1 | CB23: 1
A24: 9 | B24: 979990103R00 | C24: Poplatek za skládku stavební suti beton skupina odpadu 170101 | D24: t | E24: 0.648 | G24: =E24*F24 -> 0 | H24: 0 | I24: =E24*H24 -> 0 | J24: 0 | K24: =E24*J24 -> 0 | O24: 2 | AA24: 1 | AB24: 1 | AC24: 1 | AZ24: 1 | BA24: =IF(AZ24=1,G24,0) -> 0 | BB24: =IF(AZ24=2,G24,0) -> 0 | BC24: =IF(AZ24=3,G24,0) -> 0 | BD24: =IF(AZ24=4,G24,0) -> 0 | BE24: =IF(AZ24=5,G24,0) -> 0 | CA24: 1 | CB24: 1
A25: 10 | B25: 979999995R00 | C25: Poplatek za reciklaci asfaltu, kusovost do 1600cm2 skupina 170302 | D25: t | E25: 0.396 | G25: =E25*F25 -> 0 | H25: 0 | I25: =E25*H25 -> 0 | J25: 0 | K25: =E25*J25 -> 0 | O25: 2 | AA25: 1 | AB25: 1 | AC25: 1 | AZ25: 1 | BA25: =IF(AZ25=1,G25,0) -> 0 | BB25: =IF(AZ25=2,G25,0) -> 0 | BC25: =IF(AZ25=3,G25,0) -> 0 | BD25: =IF(AZ25=4,G25,0) -> 0 | BE25: =IF(AZ25=5,G25,0) -> 0 | CA25: 1 | CB25: 1
C26: Položka je určena pro suť o velikosti kusu do 30x30 cm (technologický materiál určený k recyklaci). | L26: Položka je určena pro suť o velikosti kusu do 30x30 cm (technologický materiál určený k recyklaci). | O26: 3
B27: Celkem za | C27: 1 Zemní práce | G27: =SUM(G7:G26) -> 0 | I27: =SUM(I7:I26) -> 0.039648 | K27: =SUM(K7:K26) -> -1.836 | O27: 4 | BA27: =SUM(BA7:BA26) -> 0 | BB27: =SUM(BB7:BB26) -> 0 | BC27: =SUM(BC7:BC26) -> 0 | BD27: =SUM(BD7:BD26) -> 0 | BE27: =SUM(BE7:BE26) -> 0
A28: Díl: | B28: 3 | C28: Svislé a kompletní konstrukce | O28: 1
A29: 11 | B29: 349121101RT5 | C29: Montáž plastové skříně plyn-HUP včetně dodávky skříně s vystrojením a základů | D29: kus | E29: 1 | G29: =E29*F29 -> 0 | H29: 0.204 | I29: =E29*H29 -> 0.204 | J29: 0 | K29: =E29*J29 -> 0 | O29: 2 | AA29: 1 | AB29: 0 | AC29: 0 | AZ29: 1 | BA29: =IF(AZ29=1,G29,0) -> 0 | BB29: =IF(AZ29=2,G29,0) -> 0 | BC29: =IF(AZ29=3,G29,0) -> 0 | BD29: =IF(AZ29=4,G29,0) -> 0 | BE29: =IF(AZ29=5,G29,0) -> 0 | CA29: 1 | CB29: 0
C30: Součástí položky je i kompletní provedení zemních prací s odvozem zeminy na skládku zhotovitele včetně poplatku | L30: Součástí položky je i kompletní provedení zemních prací s odvozem zeminy na skládku zhotovitele včetně poplatku | O30: 3
B31: Celkem za | C31: 3 Svislé a kompletní konstrukce | G31: =SUM(G28:G30) -> 0 | I31: =SUM(I28:I30) -> 0.204 | K31: =SUM(K28:K30) -> 0 | O31: 4 | BA31: =SUM(BA28:BA30) -> 0 | BB31: =SUM(BB28:BB30) -> 0 | BC31: =SUM(BC28:BC30) -> 0 | BD31: =SUM(BD28:BD30) -> 0 | BE31: =SUM(BE28:BE30) -> 0
A32: Díl: | B32: 5 | C32: Komunikace | O32: 1
A33: 12 | B33: 566903111R00 | C33: Vyspravení podkladu po překopech kam.hrubě drceným | D33: t | E33: 0.6743 | G33: =E33*F33 -> 0 | H33: 1.1 | I33: =E33*H33 -> 0.74173 | J33: 0 | K33: =E33*J33 -> 0 | O33: 2 | AA33: 1 | AB33: 1 | AC33: 1 | AZ33: 1 | BA33: =IF(AZ33=1,G33,0) -> 0 | BB33: =IF(AZ33=2,G33,0) -> 0 | BC33: =IF(AZ33=3,G33,0) -> 0 | BD33: =IF(AZ33=4,G33,0) -> 0 | BE33: =IF(AZ33=5,G33,0) -> 0 | CA33: 1 | CB33: 1
C34: Přípojka STL plyn:3,00*0,60*0,20*1,873 | E34: 0.6743 | M34: Přípojka STL plyn:3,00*0,60*0,20*1,873
A35: 13 | B35: 566904111R00 | C35: Vyspravení podkladu po překopech kam.obal.asfaltem | D35: t | E35: 0.45 | G35: =E35*F35 -> 0 | H35: 1 | I35: =E35*H35 -> 0.45 | J35: 0 | K35: =E35*J35 -> 0 | O35: 2 | AA35: 1 | AB35: 1 | AC35: 1 | AZ35: 1 | BA35: =IF(AZ35=1,G35,0) -> 0 | BB35: =IF(AZ35=2,G35,0) -> 0 | BC35: =IF(AZ35=3,G35,0) -> 0 | BD35: =IF(AZ35=4,G35,0) -> 0 | BE35: =IF(AZ35=5,G35,0) -> 0 | CA35: 1 | CB35: 1
C36: Přípojka STL plyn:3,00*0,60*0,10*2,5 | E36: 0.45 | M36: Přípojka STL plyn:3,00*0,60*0,10*2,5
A37: 14 | B37: 566905111R00 | C37: Vyspravení podkladu po překopech podklad.betonem | D37: m3 | E37: 0.27 | G37: =E37*F37 -> 0 | H37: 2.5 | I37: =E37*H37 -> 0.675 | J37: 0 | K37: =E37*J37 -> 0 | O37: 2 | AA37: 1 | AB37: 1 | AC37: 1 | AZ37: 1 | BA37: =IF(AZ37=1,G37,0) -> 0 | BB37: =IF(AZ37=2,G37,0) -> 0 | BC37: =IF(AZ37=3,G37,0) -> 0 | BD37: =IF(AZ37=4,G37,0) -> 0 | BE37: =IF(AZ37=5,G37,0) -> 0 | CA37: 1 | CB37: 1
C38: Přípojka STL plyn:3,00*0,60*0,15 | E38: 0.27 | M38: Přípojka STL plyn:3,00*0,60*0,15
A39: 15 | B39: 573111121R00 | C39: Postřik infiltr., množství zbytkov. poj. 0,60kg/m2 | D39: m2 | E39: 1.8 | G39: =E39*F39 -> 0 | H39: 0.00561 | I39: =E39*H39 -> 0.010098 | J39: 0 | K39: =E39*J39 -> 0 | O39: 2 | AA39: 1 | AB39: 1 | AC39: 1 | AZ39: 1 | BA39: =IF(AZ39=1,G39,0) -> 0 | BB39: =IF(AZ39=2,G39,0) -> 0 | BC39: =IF(AZ39=3,G39,0) -> 0 | BD39: =IF(AZ39=4,G39,0) -> 0 | BE39: =IF(AZ39=5,G39,0) -> 0 | CA39: 1 | CB39: 1
C40: Přípojka STL plyn:3,00*0,60 | E40: 1.8 | M40: Přípojka STL plyn:3,00*0,60
B41: Celkem za | C41: 5 Komunikace | G41: =SUM(G32:G40) -> 0 | I41: =SUM(I32:I40) -> 1.876828 | K41: =SUM(K32:K40) -> 0 | O41: 4 | BA41: =SUM(BA32:BA40) -> 0 | BB41: =SUM(BB32:BB40) -> 0 | BC41: =SUM(BC32:BC40) -> 0 | BD41: =SUM(BD32:BD40) -> 0 | BE41: =SUM(BE32:BE40) -> 0
A42: Díl: | B42: 8 | C42: Trubní vedení | O42: 1
A43: 16 | B43: 841220010RAX | C43: Plynovodní přípojka z trub PE, D 32 mm, dl. 5 m napojení na řád D 63 mm | D43: kus | E43: 1 | G43: =E43*F43 -> 0 | H43: 1.45879 | I43: =E43*H43 -> 1.45879 | J43: 0 | K43: =E43*J43 -> 0 | O43: 2 | AA43: 1 | AB43: 1 | AC43: 1 | AZ43: 1 | BA43: =IF(AZ43=1,G43,0) -> 0 | BB43: =IF(AZ43=2,G43,0) -> 0 | BC43: =IF(AZ43=3,G43,0) -> 0 | BD43: =IF(AZ43=4,G43,0) -> 0 | BE43: =IF(AZ43=5,G43,0) -> 0 | CA43: 1 | CB43: 1
C44: V položce je zakalkulováno hloubení rýh zapažených, šířky 60 cm v hornině 3, ve volném terénu, dodávka a montáž potrubí včetně navrtávací objímky, s podsypem štěrkopískem, s obsypem pískem nebo štěrkopískem, se zásypem štěrkodrtí v komunikaci hutněným a s odvozem přebytečné zeminy na skládku zhotovitele, s poplatku za skládku. Součástí ceny je dodávka trubního materiálu, elektrokoleno, chránička bralen, objímka, kulový kohout Novasfer, těsnící tmel, přechodka Isiflo, podpůrná vložka, držák chráničky a montáž všech částí přípojky, dále pak i výstražná fólie. | L44: V položce je zakalkulováno hloubení rýh zapažených, šířky 60 cm v hornině 3, ve volném terénu, dodávka a montáž potrubí včetně navrtávací objímky, s podsypem štěrkopískem, s obsypem pískem nebo štěrkopískem, se zásypem štěrkodrtí v komunikaci hutněným a s odvozem přebytečné zeminy na skládku zhotovitele, s poplatku za skládku. Součástí ceny je dodávka trubního materiálu, elektrokoleno, chránička bralen, objímka, kulový kohout Novasfer, těsnící tmel, přechodka Isiflo, podpůrná vložka, držák chráničky a montáž všech částí přípojky, dále pak i výstražná fólie. | O44: 3
C45: Délka přípojky 5 m + 1,5 m z výkopu do fasády. | L45: Délka přípojky 5 m + 1,5 m z výkopu do fasády. | O45: 3
B46: Celkem za | C46: 8 Trubní vedení | G46: =SUM(G42:G45) -> 0 | I46: =SUM(I42:I45) -> 1.45879 | K46: =SUM(K42:K45) -> 0 | O46: 4 | BA46: =SUM(BA42:BA45) -> 0 | BB46: =SUM(BB42:BB45) -> 0 | BC46: =SUM(BC42:BC45) -> 0 | BD46: =SUM(BD42:BD45) -> 0 | BE46: =SUM(BE42:BE45) -> 0
A47: Díl: | B47: 99 | C47: Staveništní přesun hmot | O47: 1
A48: 17 | B48: 998276101R00 | C48: Přesun hmot, trubní vedení plastová, otevř. výkop | D48: t | E48: 3.579266 | G48: =E48*F48 -> 0 | H48: 0 | I48: =E48*H48 -> 0 | K48: =E48*J48 -> 0 | O48: 2 | AA48: 7 | AB48: 1 | AC48: 2 | AZ48: 1 | BA48: =IF(AZ48=1,G48,0) -> 0 | BB48: =IF(AZ48=2,G48,0) -> 0 | BC48: =IF(AZ48=3,G48,0) -> 0 | BD48: =IF(AZ48=4,G48,0) -> 0 | BE48: =IF(AZ48=5,G48,0) -> 0 | CA48: 7 | CB48: 1
B49: Celkem za | C49: 99 Staveništní přesun hmot | G49: =SUM(G47:G48) -> 0 | I49: =SUM(I47:I48) -> 0 | K49: =SUM(K47:K48) -> 0 | O49: 4 | BA49: =SUM(BA47:BA48) -> 0 | BB49: =SUM(BB47:BB48) -> 0 | BC49: =SUM(BC47:BC48) -> 0 | BD49: =SUM(BD47:BD48) -> 0 | BE49: =SUM(BE47:BE48) -> 0
